Workbook

Sheet Шокеры
F2: 30.03.2020.
E3: победитель PIR EXPO AWARDS - 2019 в категории "Лучшая отечественная разработка для ресторана"
B5: ПРАЙС - ЛИСТ Шкафы шоковой заморозки POLAIR
B6: Шкафы шоковой заморозки (шокеры) POLAIR позволяют быстро охладить и быстро заморозить готовые блюда и продукты Быстрое охлаждение позволяет блокировать испарение влаги, сохраняя вес готового блюда, а также, избежать интенсивного размножения бактерий, ведущих к прокисанию и порче готовых блюд, а значит увеличивает срок их хранения Быстрое замораживание дает возможность сохранить вкус, форму, полезные свойства, аромат и внешний вид продукта – свежего или приготовленного, благодаря формированию микро, а не макрокристаллов, которые не повреждают клеточной структуры продукта, оставляя ее неизменной
D11: Шкафы шоковой заморозки POLAIR рассчитаны на работу при температуре окружающей среды до +40°С Температура внутри камеры - до -40°С
D15: Шкафы шоковой заморозки POLAIR: Охлаждают от t° продукта +90 до +3°С – за 90 минут Замораживают от t° продукта +90 до -18°С – за 240 минут Доступны два режима снижения температуры – быстрый и мягкий
D20: Термощуп – в комплекте поставки шокеров Возможны завершение цикла охлаждения/заморозки продуктов: • по предустановленному времени • по температуре внутри продукта Оттайка ипарителя – автоматическая, горячим газом
D23: Дополнительно предусмотрены функции: • обеззараживания рыбы из открытых водоемов • закалки мороженого
D27: Шкафы шоковой заморозки POLAIR позволяют: • Оптимизировать и сократить по времени процесс создания заготовок • Существенно расширить меню • Снизить себестоимость блюд, приобретая продукты в высокий сезон и/или в оптовых количествах • Сократить отходы • Осуществить закупку продуктов по самым выгодным ценам • Гарантируют пищевую безопасность • Минимизируют потерю влаги и веса продуктов • Рационализируют все процессы Повышают маржинальность любого предприятия общественного питания
B35: Базовые цены с учетом НДС | G35: Цена не учитывает стоимость логистических услуг
B36: Шкафы шоковой заморозки POLAIR
B37: Шокеры работают при температуре окужающей среды до +40° С
B38: Охлаждают от t° продукта +90 до +3°С – за 90 минут, замораживают от t° продукта +90 до -18°С – за 240 минут
B39: Фото | C39: Модель | D39: Кол-во уровней | E39: Размер | F39: Описание | G39: Цена, Руб с НДС
C40: CR5-G | D40: 5 | E40: 800x800x900 | F40: Направляющие под GN1/1 и EN40x60 Количество охлаждаемого продукта - 20 кг Количество заморажиаемого продукта - 12 кг На шокер можно установить пароконвектомат | G40: 155500
C41: CR10-G | D41: 10 | E41: 800x800x1650 | F41: Направляющие под GN1/1 и EN40x60 Количество охлаждаемого продукта - 35 кг Количество заморажиаемого продукта - 25 кг | G41: 209900
C42: CR10-G (380 W) | D42: 10 | E42: 800x800x1650 | F42: Направляющие под GN1/1 и EN40x60 Количество охлаждаемого продукта - 35 кг Количество заморажиаемого продукта - 25 кг | G42: 189900
B43: Производитель оставляет за собой право частичного изменения технических характеристик оборудования без принципиальных изменений его эксплуатационных свойств

Sheet Шк Standard-мет.двери
H2: 30.03.2020.
C5: ПРАЙС - ЛИСТ Холодильные шкафы POLAIR Standard с металлическими дверьми
C6: Обшивки корпуса и дверей - сталь с полимерным покрытием. Термоизоляция – пенополиуретан. Корпус герметичный цельнозаливной. Профессиональная динамическая холодильная система. Уверенная работа при температуре окружающей среды до +40°С. Шкафы объемом 700 и 1400 л соответствуют стандарту "Гастронорм". Как и вся продукция POLAIR, шкафы проходят приемо-сдаточные испытания в системе 100% контроля качества.
C7: Базовые цены с учетом НДС | I7: * Цена не учитывает стоимость логистических услуг
C8: Холодильные шкафы с металлическими дверьми
C9: Рабочий диапазон температур 0…+6° С, работают при температуре окр. среды до +40° С
C10: Xладагент R 134а. Толщина стенки корпуса 43 мм
C11: Фото | D11: Модель | E11: Линия | F11: Объем | G11: Размер | H11: Описание | I11: Цена*, Руб
D12: CM105-S | E12: Standard | F12: 500 | G12: 697х695х1960 | H12: Верхнее расположение агрегата 4 полки, замок, подсветка | I12: 41400
D13: CM107-S | E13: Standard | F13: 700 | G13: 697х925х1960 | H13: Верхнее расположение агрегата 4 полки, замок, подсветка GN2/1 | I13: 47500
D14: CM110-S | E14: Standard | F14: 1000 | G14: 1402х695х1960 | H14: Верхнее расположение агрегата 8 полок, замки, подсветка | I14: 60650
D15: CM114-S | E15: Standard | F15: 1400 | G15: 1402х925х1960 | H15: Верхнее расположение агрегата 8 полок, замки, подсветка GN2/1 | I15: 67700
C16: Холодильные шкафы с металлическими дверьми
C17: Рабочий диапазон температур -5…+5° С, работают при температуре окр. среды до +40° С
C18: Xладагент R 134а. Толщина стенки корпуса 43 мм
C19: Фото | D19: Модель | E19: Линия | F19: Объем | G19: Размер | H19: Описание | I19: Цена*, Руб
D20: CV105-S | E20: Standard | F20: 500 | G20: 697х695х1960 | H20: Верхнее расположение агрегата Электрическая оттайка 4 полки, замок, подсветка | I20: 52200
D21: CV107-S | E21: Standard | F21: 700 | G21: 697х925х1960 | H21: Верхнее расположение агрегата Электрическая оттайка 4 полки, замок, подсветка GN2/1 | I21: 58800
D22: CV110-S | E22: Standard | F22: 1000 | G22: 1402х695х1960 | H22: Верхнее расположение агрегата Электрическая оттайка 8 полок, замки, подсветка | I22: 71900
D23: CV114-S | E23: Standard | F23: 1400 | G23: 1402х925х1960 | H23: Верхнее расположение агрегата Электрическая оттайка 8 полок, замки, подсветка GN2/1 | I23: 78800
C29: Производитель оставляет за собой право частичного изменения технических характеристик оборудования без принципиальных изменений его эксплуатационных свойств
C31: Рабочий диапазон температур не выше -18° С, работают при температуре окр. среды до +40° С
C32: Хладагент R 404A. Толщина стенки корпуса 43 мм
C33: Фото | D33: Модель | E33: Линия | F33: Объем | G33: Размер | H33: Описание | I33: Цена*, Руб
D34: CВ105-S | E34: Standard | F34: 500 | G34: 697х695х1960 | H34: Верхнее расположение агрегата. Толщина стенки 43 мм. Электрическая оттайка 4 полки, замок, подсветка | I34: 56300
C35: Рабочий диапазон температур не выше -18° С, работают при температуре окр. среды до +40° С
C36: Хладагент R 404A. Толщина стенки корпуса 61 мм
C37: Фото | D37: Модель | E37: Линия | F37: Объем | G37: Размер | H37: Описание | I37: Цена*, Руб
D38: CВ107-S | E38: Standard | F38: 700 | G38: 735х960х1996 | H38: Верхнее расположение агрегата Электрическая оттайка 4 полки, замок, подсветка GN2/1 | I38: 65990
D39: CВ114-S | E39: Standard | F39: 1400 | G39: 1474х960х1996 | H39: Верхнее расположение агрегата Электрическая оттайка 8 полок, замки, подсветка GN2/1 | I39: 95500
C40: Комбинированные шкафы с металлическими дверьми
C41: Рабочий диапазон температур 0…+6° С,/ -15…-20° С, работает при температуре окр. среды до +40° С
C42: Хладагенты R134а и R404A. Толщина стенки корпуса 43 мм
C43: Фото | D43: Модель | E43: Линия | F43: Объем | G43: Размер | H43: Описание | I43: Цена*, Руб
D44: CC214-S | E44: Standard | F44: 700/700 | G44: 1402х925х1960 | H44: Двухкамерный. Внутренний объем каждой камеры 700 л. Верхнее расположение агрегата 8 полок, замки, подсветка GN2/1 | I44: 98980
C46: Производитель оставляет за собой право частичного изменения технических характеристик оборудования без принципиальных изменений его эксплуатационных свойств

Sheet Шк Grande-все
H2: 30.03.2020.
C5: ПРАЙС - ЛИСТ Холодильные шкафы POLAIR Gm с алюминиевыми профилями
C6: Шкафы POLAIR Gm (Grande modificato - модифицированные) изготавливаются из пищевой нержавеющей стали - снаружи и изнутри (за исключением задней внешней стенки). Термоизоляция – пенополиуретан. Корпус герметичный цельнозаливной. Оснащены профессиональной динамической системой охлаждения. Имеют клавишный микропереключатель и светодиодную подсветку. Электронная панель управления кроме обычных функций позволяет: • Подключить шкаф к системам дистанционного мониторинга (в том числе, через порт MODBUS с помощью сетевой карты) • Записать данные в журнал контроллера (с использованием сетевой карты) • Передавать данные через Bluetooth (модуль для передачи данных – опция) Алюминиевые профили дверей и верхней панели: • Придают шкафам дополнительную прочность • Обеспечивают эргономичность (ручка интегрирована в профиль) • Дополняют гармоничный дизайн шкафов Шкафы объемом 700 и 1400 л гастронормированы - GN 2/1. Педаль для открывания двери входит в комплект стандартной поставки. Колеса вместо регулируемых по высоте ножек предлагаются в качестве опции.
C7: Базовые цены с учетом НДС | I7: * Цена не учитывает стоимость логистических услуг
C8: Рабочий диапазон температур 0…+6° С, работают при температуре окр. среды до +40° С
C9: Хладагент R 134а. Толщина стенки корпуса 43 мм
C10: Фото | D10: Модель | E10: Линия | F10: Объем | G10: Размер | H10: Описание | I10: Цена*, Руб
D11: CM105-Gm | E11: Gm | F11: 500 | G11: 697х695х1960 | H11: Внутренний объем 500 л, верхнее расположение агрегата, нержавеющая сталь, алиминиевые профили, 4 полки, замок, LED подсветка, педаль | I11: 67108.47458
D12: CM107-Gm | E12: Gm | F12: 700 | G12: 697х925х1960 | H12: Внутренний объем 700 л, верхнее расположение агрегата, нержавеющая сталь, алиминиевые профили, 4 полки, замок, LED подсветка, педаль | I12: 77700
D13: CM110-Gm | E13: Gm | F13: 1000 | G13: 1402х695х1960 | H13: Внутренний объем 1 000 л, верхнее расположение агрегата, нержавеющая сталь, алиминиевые профили, 8 полок, замки, LED подсветка, 2 педали | I13: 94000
D14: CM114-Gm | E14: Gm | F14: 1400 | G14: 1402х925х1960 | H14: Внутренний объем 1 400 л, верхнее расположение агрегата, нержавеющая сталь, алиминиевые профили, 8 полок, замки, LED подсветка, 2 педали | I14: 105000
C15: Холодильные шкафы с металлическими дверьми
C16: Рабочий диапазон температур -5…+5° С, работают при температуре окр. среды до +40° С
C17: Xладагент R 134а. Толщина стенки корпуса 43 мм
C18: Фото | D18: Модель | E18: Линия | F18: Объем | G18: Размер | H18: Описание | I18: Цена*, Руб
D19: CV105-Gm | E19: Gm | F19: 500 | G19: 697х695х1960 | H19: Внутренний объем 500 л, верхнее расположение агрегата, нержавеющая сталь, алиминиевые профили, 4 полки, замок, LED подсветка, педаль | I19: 71084.74576
D20: CV107-Gm | E20: Gm | F20: 700 | G20: 697х925х1960 | H20: Внутренний объем 700 л, верхнее расположение агрегата, нержавеющая сталь, алиминиевые профили, 4 полки, замок, LED подсветка, педаль | I20: 84400
D21: CV110-Gm | E21: Gm | F21: 1000 | G21: 1402х695х1960 | H21: Внутренний объем 1 000 л, верхнее расположение агрегата, нержавеющая сталь, алиминиевые профили, 8 полок, замки, LED подсветка, 2 педали | I21: 109000
D22: CV114-Gm | E22: Gm | F22: 1400 | G22: 1402х925х1960 | H22: Внутренний объем 1 400 л, верхнее расположение агрегата, нержавеющая сталь, алиминиевые профили, 8 полок, замки, LED подсветка, 2 педали | I22: 115550
C23: Рабочий диапазон температур не выше -18° С, работают при температуре окр. среды до +40° С
C24: Хладагент R 404A. Толщина стенки корпуса 61 мм
C25: Фото | D25: Модель | E25: Линия | F25: Объем | G25: Размер | H25: Описание | I25: Цена*, Руб
D26: CB107-Gm | E26: Gm | F26: 700 | G26: 735х960х1996 | H26: Внутренний объем 700 л, верхнее расположение агрегата, нержавеющая сталь, алиминиевые профили, 4 полки, замок, LED подсветка, педаль Электрическая оттайка | I26: 89900
D27: CB114-Gm | E27: Gm | F27: 1400 | G27: 1474х960х1996 | H27: Внутренний объем 1 400 л, верхнее расположение агрегата, нержавеющая сталь, алиминиевые профили, 8 полок, замки, LED подсветка, 2 педали Электрическая оттайка | I27: 128280
C31: ПРАЙС - ЛИСТ Холодильные шкафы POLAIR Grande
C32: Шкафы POLAIR Grande изготавливаются из пищевой нержавеющей стали - снаружи и изнутри (за исключением задней внешней стенки). Термоизоляция – пенополиуретан. Корпус герметичный цельнозаливной. Оборудование комплектуется компрессорами ведущих европейских производителей. Шкафы объемом 700 и 1400 л соответствуют стандарту "Гастронорм". Вся продукция на заводе проходит 100% контроль качества.
C34: Базовые цены с учетом НДС | I34: * Цена не учитывает стоимость логистических услуг
C35: Рабочий диапазон температур 0…+6° С, работают при температуре окр. среды до +40° С
C36: Хладагент R 134а. Толщина стенки корпуса 43 мм
C37: Фото | D37: Модель | E37: Линия | F37: Объем | G37: Размер | H37: Описание | I37: Цена*, Руб
D38: CM105-G | E38: Grande | F38: 500 | G38: 697х695х1960 | H38: Внутренний объем 500 л, верхнее расположение агрегата, нержавеющая сталь, 4 полки, замок, подсветка | I38: 67108.47458
D39: CM107-G | E39: Grande | F39: 700 | G39: 697х925х1960 | H39: Внутренний объем 700 л, верхнее расположение агрегата, нержавеющая сталь 4 полки, замок, подсветка | I39: 77700
D40: CM110-G | E40: Grande | F40: 1000 | G40: 1402х695х1960 | H40: Внутренний объем 1000 л, верхнее расположение агрегата, нержавеющая сталь 8 полок, замки, подсветка | I40: 94000
D41: CM114-G | E41: Grande | F41: 1400 | G41: 1402х925х1960 | H41: Внутренний объем 1400 л, верхнее расположение агрегата, нержавеющая сталь 8 полок, замки, подсветка | I41: 105000
C42: Рабочий диапазон температур -5…+5° С, работают при температуре окр. среды до +40° С
C43: Хладагент R 134а. Толщина стенки корпуса 43 мм
C44: Фото | D44: Модель | E44: Линия | F44: Объем | G44: Размер | H44: Описание | I44: Цена*, Руб
D45: CV105-G | E45: Grande | F45: 500 | G45: 697х695х1960 | H45: Внутренний объем 500 л, верхнее расположение агрегата, нержавеющая сталь Электрическая оттайка 4 полки, замок, подсветка | I45: 71084.74576
D46: CV107-G | E46: Grande | F46: 700 | G46: 697х925х1960 | H46: Внутренний объем 700 л, верхнее расположение агрегата, нержавеющая сталь Электрическая оттайка 4 полки, замок, подсветка | I46: 84400
D47: CV110-G | E47: Grande | F47: 1000 | G47: 1402х695х1960 | H47: Внутренний объем 1000 л, верхнее расположение агрегата, нержавеющая сталь Электрическая оттайка 8 полок, замки, подсветка | I47: 109000
D48: CV114-G | E48: Grande | F48: 1400 | G48: 1402х925х1960 | H48: Внутренний объем 1400 л, верхнее расположение агрегата, нержавеющая сталь Электрическая оттайка 8 полок, замки, подсветка | I48: 115550
C49: Рабочий диапазон температур не выше -18° С, работают при температуре окр. среды до +40° С
C50: Хладагент R 404A. Толщина стенки корпуса 61 мм
C51: Фото | D51: Модель | E51: Линия | F51: Объем | G51: Размер | H51: Описание | I51: Цена*, Руб
D52: CB107-G | E52: Grande | F52: 700 | G52: 735х960х1996 | H52: Внутренний объем 700 л, верхнее расположение агрегата, нержавеющая сталь марки Электрическая оттайка 4 полки, замок, подсветка | I52: 89900
D53: CB114-G | E53: Grande | F53: 1400 | G53: 1474х960х1996 | H53: Внутренний объем 1400 л, верхнее расположение агрегата, нержавеющая сталь марки Электрическая оттайка 8 полок, замки, подсветка | I53: 128280
C54: Рабочий диапазон температур +1…+10° С, работают при температуре окр. среды до +32° С
C55: Хладагент R 134а. Толщина стенки корпуса 43 мм
C56: Фото | D56: Модель | E56: Линия | F56: Объем | G56: Размер | H56: Описание | I56: Цена*, Руб
D57: DM105-G | E57: Grande | F57: 500 | G57: 697х710х1960 | H57: Внутренний объем 500 л, нержавеющая сталь, 4 полки, вертикальная подсветка, канапе с подсветкой. Стеклянная дверь. | I57: 73730
D58: DM107-G | E58: Grande | F58: 700 | G58: 697х945х1960 | H58: Внутренний объем 700 л, нержавеющая сталь 4 полки, вертикальная подсветка, канапе с подсветкой. Стеклянная дверь. | I58: 93390
C60: Производитель оставляет за собой право частичного изменения технических характеристик оборудования без принципиальных изменений его эксплуатационных свойств

Sheet Шк Sm-new
H2: 30.03.2020.
C5: ПРАЙС - ЛИСТ Холодильные шкафы POLAIR Sm с алюминиевыми профилями
C6: Шкафы POLAIR Sm являются обновленной в духе современного промышленного дизайна, версией холодильных шкафов POLAIR - Standard. Алюминиевые профили дверей и верхней панели придают шкафам дополнительную прочност и обеспечивают эргономичность. Шкафы оснащены профессиональной динамической системой охлаждения. Имеют клавишный микропереключатель и внутреннюю светодиодную подсветку. В качестве терморегулятора применен электронный блок управления. Корпус герметичный цельнозаливной.Термоизоляция – пенополиуретан. Обшивки корпуса и дверей - сталь с полимерным покрытием. Шкафы объемом 700 и 1400 л гастронормированы - GN 2/1. Педаль для открывания двери входит в комплект поставки, колеса вместо регулируемых по высоте ножек предлагаются в качестве опций.
C7: Базовые цены с учетом НДС | I7: * Цена не учитывает стоимость логистических услуг
C8: Рабочий диапазон температур 0…+6° С, работают при температуре окр. среды до +40° С
C9: Хладагент R 134а. Толщина стенки корпуса 43 мм
C10: Фото | D10: Модель | E10: Линия | F10: Объем | G10: Размер | H10: Описание | I10: Цена*, Руб
D11: CM105-Sm | E11: Standard m | F11: 500 | G11: 697х695х1960 | H11: Внутренний объем 500 л, верхнее расположение агрегата, алюминиевые профили, 4 полки, замок, подсветка, педаль | I11: 47000
D12: CM107-Sm | E12: Standard m | F12: 700 | G12: 697х925х1960 | H12: Внутренний объем 700 л, верхнее расположение агрегата, алюминиевые профили, 4 полки, замок, подсветка, 2 педали | I12: 52990
D13: CM110-Sm | E13: Standard m | F13: 1000 | G13: 1402х695х1960 | H13: Внутренний объем 1 000 л, верхнее расположение агрегата, алюминиевые профили, 8 полок, замки, подсветка, педаль | I13: 68800
D14: CM114-Sm | E14: Standard m | F14: 1400 | G14: 1402х925х1960 | H14: Внутренний объем 1 400 л, верхнее расположение агрегата, алюминиевые профили, 8 полок, замки, подсветка, 2 педали | I14: 75500
C15: Холодильные шкафы с металлическими дверьми
C16: Рабочий диапазон температур -5…+5° С, работают при температуре окр. среды до +40° С
C17: Xладагент R 134а. Толщина стенки корпуса 43 мм
C18: Фото | D18: Модель | E18: Линия | F18: Объем | G18: Размер | H18: Описание | I18: Цена*, Руб
D19: CV105-Sm | E19: Standard m | F19: 500 | G19: 697х695х1960 | H19: Внутренний объем 500 л, верхнее расположение агрегата, алюминиевые профили, 4 полки, замок, подсветка, педаль | I19: 58580
D20: CV107-Sm | E20: Standard m | F20: 700 | G20: 697х925х1960 | H20: Внутренний объем 700 л, верхнее расположение агрегата, алюминиевые профили, 4 полки, замок, подсветка, 2 педали | I20: 65600
D21: CV110-Sm | E21: Standard m | F21: 1000 | G21: 1402х695х1960 | H21: Внутренний объем 1 000 л, верхнее расположение агрегата, алюминиевые профили, 8 полок, замки, подсветка, педаль | I21: 80800
D22: CV114-Sm | E22: Standard m | F22: 1400 | G22: 1402х925х1960 | H22: Внутренний объем 1 400 л, верхнее расположение агрегата, алюминиевые профили, 8 полок, замки, подсветка, 2 педали | I22: 89800
C23: Температурный режим: -18° С, температура окр. среды до +40° С
C24: Хладагент R 404A. Толщина стенки корпуса 43 мм
C25: Фото | D25: Модель | E25: Линия | F25: Объем | G25: Размер | H25: Описание | I25: Цена*, Руб
D26: CB105-Sm | E26: Standard m | F26: 500 | G26: 697х695х1960 | H26: Внутренний объем 500 л, верхнее расположение агрегата, алюминиевые профили, 4 полки, замок, подсветка, педаль Электрическая оттайка | I26: 65650
C27: Рабочий диапазон температур не выше -18° С, работают при температуре окр. среды до +40° С
C28: Хладагент R 404A. Толщина стенки корпуса 61 мм
C29: Фото | D29: Модель | E29: Линия | F29: Объем | G29: Размер | H29: Описание | I29: Цена*, Руб
D30: CB107-Sm | E30: Standard m | F30: 700 | G30: 735х960х1996 | H30: Внутренний объем 700 л, верхнее расположение агрегата, алюминиевые профили, 4 полки, замок, подсветка, педаль Электрическая оттайка | I30: 75750
D31: CB114-Sm | E31: Standard m | F31: 1400 | G31: 1474х960х1996 | H31: Внутренний объем 1 400 л, верхнее расположение агрегата, алюминиевые профили, 8 полок, замки, подсветка, 2 педали Электрическая оттайка | I31: 106990
C32: Производитель оставляет за собой право частичного изменения технических характеристик оборудования без принципиальных изменений его эксплуатационных свойств

Sheet Спец шк
F2: 30.03.2020.
B5: ПРАЙС - ЛИСТ Cпециализированные шкафы POLAIR
B6: Специализированные шкафы POLAIR рассчитаны на применение в фермерских хозяйствах, ресторанах, стейк-хаусах, продуктовых бутиках, супермаркетах, специализированных магазинах и т.п. Диапазон рабочих температур от -2 до +30°С. Влажность регулируется в диапазоне от 60 до 95%. Встроенный увлажнитель предусматривает стандартное подключение к водопроводу (с водоочисткой) и к канализации. Шкафы предназначены для работы при температуре окружающего воздуха до +40°С. Русифицированная электронная панель управления с графическим дисплеем диагональю 5 дюймов позволяет управлять работой шкафов, задавать нужные параметы для каждой из стадий готовности того или иного продукта, сохранять программы для дальнейшего использования. А также, обеспечивает функцию дистанционного мониторинга за работой шкафа (в том числе, HACCP).
D13: Шкаф CS107-Salami дает возможность приготовить различные виды этой и других сыровяленых колбас, а также других мясных деликатесов, не уступающих по качеству аналогам легендарных мировых брендов. Шкафы оснащены специальными перекладинами с подвесами для колбас. Встроенный увлажнитель и UV-лампа для обеззараживания воздуха входят в комплект поставки
D18: Холодильный шкаф CS107- Cheese позволяет создать оптимальные условия для дозревания сыров – твердых и полутвердых и получить продукцию, полностью соответствующую по вкусовым и органолептическим характеристикам лучшим сортам этого продукта. Полки из нержавеющей стали или из стальной окрашенной проволоки предлагаются на выбор покупателя.Шкаф комплектуется ультразвуковым увлажнителем.
D23: Модель CS107-Meat предназначена для вызревания мяса, в том числе, для получения столь популярных сейчас, стейков Dry Aged. Правильно организовать внутреннее пространство шкафов позволяют штанга для подвеса крупных кусков мяса (нагрузка до 80 кг) и полки для размещения более мелких отрубов. UV-лампа для обеззараживания воздуха входит в комплект поставки.
B28: Базовые цены с учетом НДС | G28: Цена не учитывает стоимость логистических услуг
B29: Специализированные шкафы
B30: Рабочий диапазон температур -2…+30° С, влажность регулируется в интервале от 60 до 95%
B31: Шкафы работают при температуре окужающей среды до +40° С
B32: Фото | C32: Модель | D32: Объем | E32: Размер | F32: Описание | G32: Цена, Руб с НДС
C33: CS107 Salami | D33: 700 | E33: 697х1005х1960 | F33: Ультразвуковой увлажнитель UV лампа 3 уровня тройных перекладин с подвесами для колбас внутренняя подсветка замок, педаль | G33: 223990
C34: CS107 Cheese Исполнение 1 | D34: 700 | E34: 697х1005х1960 | F34: Ультразвуковой увлажнитель 4 сетчатые полки из окрашенной проволоки внутренняя подсветка замок, педаль | G34: 221000
C35: CS107 Cheese Исполнение 2 | D35: 700 | E35: 697х1005х1960 | F35: Ультразвуковой увлажнитель 4 полки из нержавеющей стали внутренняя подсветка замок, педаль | G35: 224000
C36: CS107 Meat Исполнение 1 | D36: 700 | E36: 697х1005х1960 | F36: Ультразвуковой увлажнитель UV лампа штанга для подвеса 2 перфорированные полки из нержавеющей стали внутренняя подсветка замок, педаль | G36: 223500
C37: CS107 Meat Исполнение 2 | D37: 700 | E37: 697х1005х1960 | F37: Ультразвуковой увлажнитель UV лампа 4 перфорированные полки из нержавеющей стали внутренняя подсветка замок, педаль | G37: 224990
B38: Дополнительняе опции
B39: Название опции | D39: Подходит для модели шкафа | F39: Описание | G39: Цена, Руб с НДС
B40: Полка перфорированная из нержавеющей стали 530х650 мм | D40: CS107-Salami, Meat, Cheese | F40: Полка с перфорацией изготовлена из нержавеющей стали Направляющие в комплекте | G40: 2400
B41: Штанга для подвеса крупных кусков маса | D41: CS107- Meat | F41: Максимальная на гурзка на штангу - 80 кг | G41: 2100
B42: Тройная перекладина с подвесами для колбас | D42: CS107-Salami | F42: Система из трех перекладин, закрепленных на направляющих с подвесами для колбас | G42: 2300
B44: Производитель оставляет за собой право частичного изменения технических характеристик оборудования без принципиальных изменений его эксплуатационных свойств

Sheet Bakery
G2: 30.03.2020.
B7: ПРАЙС - ЛИСТ специализированные шкафы POLAIR Bakery
B10: Специализированные шкафы для индустрии хлебопечения и кондитерских производств. Обеспечивают замедление ферментации, хранение заготовок, их регенерацию и расстойку в нужных для каждого из процессов условиях, дают возможность подготовить изделия из теста к выпечке к строго определенному времени. Повышают качество выпечки, защищают рецептуру, минимизируют ошибки персонала, позволяет отказаться от работы в ночную смену. УВЕЛИЧИВАЮТ ПРИБЫЛЬНОСТЬ ЛЮБОЙ ПЕКАРНИ! Диапазон рабочих температур холодильных шкафов CS107Bakery Br от -10 до +40°С. Шкафы предназначены для работы при температуре окружающего воздуха до +40°С. Корпус – герметичный цельнозаливной. Обшивки – из нержавеющнй стали. Холодильная система разработана с учетом специфики данного вида оборудования.
E17: Встроенный увлажнитель создает необходимый уровень влажности в интервале от 60 до 90%. Вентилятор воздухоохладителя с регулируемой скоростью вращения предохраняет заготовки от заветривания
E20: Контрольная панель позволяет управлять температурой внутри шкафа, уровнем влажности, скоростью вращения вентилятора воздухоохладителя, протяженностью процессов, создавая собственные программы, сохраняя их и меняя при необходимости
E24: Доступны два варианта исполнения шкафов: Тип 1 - с контроллером, оснащенным пятидюймовым цветным графическим дисплеем Тип 2 - с контроллером, оснащенным большим семидюймовым дисплеем с многоцветной графикой
B28: тип 1 | E28: Двадцать пар съемных направляющих для противней 40х60 см входят в комплект стандартной поставки, как и педаль открывания двери если заняты руки
D31: тип 2
B34: Базовые цены с учетом НДС | H34: Цена не учитывает стоимость логистических услуг
B35: Фото | C35: Модель | D35: Линия | E35: Объем | F35: Размер | G35: Описание | H35: Цена*, Руб
C36: CS107-Bakery Br тип 1 | D36: Bakery | E36: 700 | F36: 697х1005х1960 | G36: Шкаф отложенной расстоки, обеспечивает замедление ферментации, хранение, брожение и расстойку теста Встроенный увлажнитель Контрольная панель с 5'' дисплеем | H36: 225500
C37: CS107-Bakery Br тип 2 | D37: Bakery | E37: 700 | F37: 697х1005х1960 | G37: Шкаф отложенной расстоки, обеспечивает замедление ферментации, хранение, брожение и расстойку теста Встроенный увлажнитель Контрольная панель с 7'' дисплеем | H37: 248800
B52: Производитель оставляет за собой право частичного изменения технических характеристик оборудования без принципиальных изменений его эксплуатационных свойств

Sheet Шк Standard-стекл.двери
G2: 30.03.2020.
B5: ПРАЙС - ЛИСТ Холодильные шкафы POLAIR Standard со стеклянными дверьми
B7: Шкафы POLAIR Standard со стеклянной дверью имеют корпус с обшивками из стали с полимерным покрытием - снаружи и изнутри. Оснащены профессиональной динамической системой охлаждения. Термоизоляция – пенополиуретан. Корпус герметичный цельнозаливной. Шкафы оснащены информационной панелью - канапе с подсветкой и имеют вертикальную внутреннюю подсветку товара. Двери в алюминиевых рамах с легкозаменяемым уплотнителем с магнитной вставкой имеют возможность перенавески.
B13: Базовые цены с учетом НДС | H13: * Цена не учитывает стоимость логистических услуг
B14: Холодильные шкафы со стеклянными дверьми. Рабочий диапазон температур +1…+10° С, работают при температуре окр. среды до +32° С
B16: Xладагент R 134а. Толщина стенки корпуса 43 мм
B17: Фото | C17: Модель | D17: Линия | E17: Объем | F17: Размер | G17: Описание | H17: Цена*, Руб
C18: DM105-S | D18: Standard | E18: 500 | F18: 697х710х1960 | G18: Внутренний объем 500л, 4 полки, вертикальная внутренняя LED подсветка, канапе с LED подсветкой | H18: 42420
C19: DM105-S 2.0 | D19: Standard | E19: 500 | F19: 697х710х1960 | G19: Внутренний объем 500л, 5 полок, вертикальная внутренняя LED подсветка, канапе с LED подсветкой. Увеличенная вместимость. Увеличенный Facing. | H19: 47400
C20: DM107-S | D20: Standard | E20: 700 | F20: 697х945х1960 | G20: Внутренний объем 700л, 4 полки, вертикальная внутренняя LED подсветка, канапе с LED подсветкой | H20: 51100
C21: DM107-S 2.0 | D21: Standard | E21: 700 | F21: 697х945х1960 | G21: Внутренний объем 700л, 5 полок, вертикальная внутренняя LED подсветка, канапе с LED подсветкой. Увеличенная вместимость. Увеличенный Facing. | H21: 54900
C22: DM110Sd-S | D22: Standard | E22: 1000 | F22: 1402х710х1960 | G22: Внутренний объем 1 000л, 8 полок, вертикальная внутренняя LED подсветка, канапе с LED подсветкой, двери купе | H22: 67990
C23: DM110Sd-S 2.0 | D23: Standard | E23: 1000 | F23: 1402х710х1960 | G23: Внутренний объем 1 000л, 10 полок, вертикальная внутренняя LED подсветка, канапе с LED подсветкой, двери купе Увеличенная вместимость. Увеличенный Facing. | H23: 75750
C24: DM114Sd-S | D24: Standard | E24: 1400 | F24: 1402х945х1960 | G24: Внутренний объем 1 400л, 8 полок, вертикальная внутренняя подсветка, канапе с подсветкой, двери купе | H24: 74740
C25: DM114Sd-S 2.0 | D25: Standard | E25: 1400 | F25: 1402х945х1960 | G25: Внутренний объем 1 400л, 10 полок, вертикальная внутренняя LED подсветка, канапе с LED подсветкой, двери купе Увеличенная вместимость. Увеличенный Facing. | H25: 82100
C26: DM110-S | D26: Standard | E26: 1000 | F26: 1402х710х1960 | G26: Внутренний объем 1000л, 8 полок, вертикальная внутренняя подсветка, канапе с LED подсветкой, двери распашные | H26: 67760
C27: DM114-S | D27: Standard | E27: 1400 | F27: 1402х945х1960 | G27: Внутренний объем 1400л, 8 полок, вертикальная внутренняя LED подсветка, канапе с LED подсветкой, двери распашные | H27: 74740
B28: Рабочий диапазон температур -8…0° С, работают при температуре окр. среды до +32° С
B29: Xладагент R 404а. Толщина стенки корпуса 43 мм
B30: Фото | C30: Модель | D30: Линия | E30: Объем | F30: Размер | G30: Описание | H30: Цена*, Руб
C31: DP102-S | D31: Standard | E31: 150 | F31: 600х625х890 | G31: Внутренний объем 150л, специальный шкаф для икры и пресервов, 2 полки, внутренняя LED подсветка, механический замок | H31: 37500
C32: DP105-S | D32: Standard | E32: 500 | F32: 697х710х1960 | G32: Внутренний объем 500л, специальный шкаф для икры и пресервов, 4 полки, вертикальная внутренняя LED подсветка, канапе с LED подсветкой, механический замок | H32: 55500
C33: DP107-S | D33: Standard | E33: 700 | F33: 697х945х1960 | G33: Внутренний объем 700л, специальный шкаф для икры и пресервов, 4 полки, вертикальная внутренняя LED подсветка, канапе с LED подсветкой, механический замок | H33: 59500
B34: Производитель оставляет за собой право частичного изменения технических характеристик оборудования без принципиальных изменений его эксплуатационных свойств

Sheet Шк Bravo
G2: 30.03.2020.
B6: ПРАЙС - ЛИСТ Холодильные шкафы со стеклянными дверьми POLAIR Bravo
B8: Компактные размеры Увеличенная обзорность Динамическая система охлаждения Экономичность энергопотребления Цельнозаливной пенополиуретаном корпус Регулируемые опоры спереди и ролики для удобства перемещения сзади
E15: Нижнее расположение агрегата обеспечивают оптимальное с точки зрения мерчандайзинга экспозицию продукции
E18: Эффективная светодиодная подсветка улучшает восприятие товара
E20: Подсветка канапе входит в комплект поставки
E22: Полки из стальной оцинкованной проволоки с полимерным покрытием выдерживают нагрузку до 50 кг - для шкафов DM104-Bravo и DM104c-Bravo
E25: Алюминиевые рамы дверей обладают высокой механической прочностью, надежностью и отменным внешним видом
B30: Базовые цены с учетом НДС | H30: Цена не учитывает стоимость логистических услуг
B31: Холодильные шкафы со стеклянными дверьми. Рабочий диапазон температур +1…+10° С, работают при температуре окр. среды до +32° С
B33: Xладагент R 134а. Толщина стенки монолитного цельнозаливного корпуса 43 мм
B34: Фото | C34: Модель | D34: Линия | E34: Объем | F34: Размер | G34: Описание | H34: Цена*, Руб
C35: DM104-Bravo | D35: Bravo | E35: 390 | F35: 606*630*1730 | G35: Внутренний объем 390л, 4 полки, внутренняя LED подсветка | H35: 39900
C36: DM104c-Bravo | D36: Bravo | E36: 390 | F36: 606*630*1935 | G36: Внутренний объем 390л, 4 полки, вертикальная LED подсветка, канапе с LED подсветкой | H36: 40400
C37: DM102-Bravo | D37: Bravo | E37: 150 | F37: 606*625*890 | G37: Внутренний объем 150л, 2 полки, внутренняя LED подсветка | H37: 34540
C38: DM102-Bravo с замком | D38: Bravo | E38: 150 | F38: 606*625*890 | G38: Внутренний объем 150л, 2 полки, внутренняя LED подсветка, замок | H38: 36040
C39: DM102-Bravo черный | D39: Bravo | E39: 150 | F39: 606*625*890 | G39: Внутренний объем 150л, 2 полки, внутренняя LED подсветка. Корпус черного цвета - снаружи и изнутри | H39: 36440
C40: DM102-Bravo черный с замком | D40: Bravo | E40: 150 | F40: 606*625*890 | G40: Внутренний объем 150л, 2 полки, внутренняя LED подсветка, замок. Корпус черного цвета - снаружи и изнутри | H40: 37940
B42: Производитель оставляет за собой право частичного изменения технических характеристик оборудования без принципиальных изменений его эксплуатационных свойств

Sheet Шк DB-S
G2: 30.03.2020.
B7: ПРАЙС - ЛИСТ Низкотемпературные шкафы POLAIR со стеклянными дверьми
B10: Высокое качество экспозиции замороженных продуктов Надежность хранения при необходимой для них температуре Экономичность энергопотребления Удобство использования и обслуживания Привлекательный дизайн Наличие на сладе ПОЛАИР
E18: Температурный диапазон от -21 до -18° обеспечивает качественное хранение любых замороженных продуктов и мороженого
E21: Условия окружающей среды (температура +25°, относительная влажность воздуха - 60% - 3-й климатический класс) типичны для любых торговых помещений, а также, залов ресторанов и кафе
E25: Двухкамерный стеклопакет двери с k-стеклом и аргоном в одной из камер гарантирует отменную термоизоляцию содержимого, экономичность энергопотребления шкафа и прозрачность стекла во всех режимах работы
E29: Алюминиевые с подогревом рамы дверей обладают высокой механической прочностью, надежностью и отменным внешним видом
B35: Базовые цены с учетом НДС | H35: Цена не учитывает стоимость логистических услуг
B36: Холодильные шкафы со стеклянными дверьми. Рабочий диапазон температур -21…-18° С, работают при температуре окр. среды до +25° С и отн влажности до 60%
B38: Xладагент R 404А
B39: Фото | C39: Модель | D39: Линия | E39: Объем | F39: Размер | G39: Описание | H39: Цена*, Руб
C40: DB105-S | D40: Stsndard | E40: 500 | F40: 687х710х1960 | G40: Толщина стенки корпуса 43 мм Электрическая оттайка Обогрев дверного проема Вертикальная LED подсветка выкладки и канапе Замок, 4 полки | H40: 71100
C41: DB107-S | D41: Stsndard | E41: 700 | F41: 735х960х1996 | G41: Толщина стенки корпуса 61 мм Электрическая оттайка Обогрев дверного проема Вертикальная LED подсветка выкладки и канапе Замок, 4 полки | H41: 75990
C42: DB102-S | D42: Stsndard | E42: 130 | F42: 606х675х870 | G42: Толщина стенки корпуса 43 мм Электрическая оттайка Обогрев дверного проема LED подсветка Замок, 2 навесные и базовая полки | H42: 51000
B47: Производитель оставляет за собой право частичного изменения технических характеристик оборудования без принципиальных изменений его эксплуатационных свойств

Sheet Фарма
G2: 30.03.2020.
C6: ПРАЙС - ЛИСТ Холодильные шкафы POLAIR фармацевтические
C8: Холодильные шкафы фармацевтические POLAIR предназначены для хранения лекарственных препаратов в лечебных и научно-исследовательских учреждениях, фармацевтических предприятиях, аптеках и имеют для этого всю необходимую разрешительную документацию. Универсальный температурный диапазон от +1 до +15°С позволяет использовать одну и ту же модель как в качестве холодного (+2…+8°С), так и прохладного (+8…+15°С) шкафов. Цельнозаливные пенополиуретаном корпуса с обшивками из стали с полимерным покрытием, динамическая система охлаждения, наличие сигнализации об отклонении температуры от заданной, микропереключателя для прекращения вращения вентилятора при открывании двери, замков, светодиодной подсветки, входящих в комплект стандартной поставки, обеспечивают оптимальные условия для хранения и продажи фармацевтических препаратов.
H10: * Цена не учитывает стоимость логистических услуг
C12: Рекомендованные Розничные Цены - Руб без НДС - на основании пп. 1 п. 2 ст. 149 НК РФ медицинские изделия (изделия медицинского назначения), освобождаются от налогообложения Налогом на добавленную стоимость
C14: Холодильные шкафы со стеклянными дверьми
C15: Рабочий диапазон температур +1…+15° С, работают при температуре окр. среды до +32° С
C16: Xладагент R 134а. Толщина стенки корпуса 43 мм
C17: Фото | D17: Модель | E17: Объем | F17: Размер | G17: Описание | H17: Цена*, Руб без НДС
D18: ШХФ-0,2ДС | E18: 200 | F18: 600x630x890 | G18: 3 полки, микропереключатель, сигнализация об отклонении температуры, внутренняя LED подсветка, теплопакет, замок | H18: 33395 30056
D19: ШХФ-0,4ДС | E19: 400 | F19: 600x630x1780 | G19: 4 полки, микропереключатель, сигнализация об отклонении температуры, внутренняя LED подсветка, теплопакет, замок | H19: 39990 35991
D20: ШХФ-0,5ДС | E20: 500 | F20: 697х710х1960 | G20: 4 полки, микропереключатель, сигнализация об отклонении температуры, вертикальная внутренняя LED подсветка, канапе с LED подсветкой, теплопакет, замок | H20: 39680 35712
D21: ШХФ-0,7ДС | E21: 700 | F21: 697х945х1960 | G21: 4 полки, микропереключатель, сигнализация об отклонении температуры, вертикальная внутренняя LED подсветка, канапе с LED подсветкой, теплопакет, замок | H21: 47828 43045
D22: ШХФ-1,0ДС | E22: 1000 | F22: 1402х710х1960 | G22: 8 полок, микропереключатель, сигнализация об отклонении температуры, вертикальная внутренняя LED подсветка, канапе с LED подсветкой, теплопакет, замки | H22: 63630 57267
D23: ШХФ-1,4ДС | E23: 1400 | F23: 1402х945х1960 | G23: 8 полок, микропереключатель, сигнализация об отклонении температуры, вертикальная внутренняя LED подсветка, канапе с LED подсветкой, теплопакет, замки | H23: 69878 62890
C24: Холодильные шкафы с металлическими дверьми
C25: Рабочий диапазон температур +1…+15° С, работают при температуре окр. среды до +40° С
C26: Xладагент R 134а. Толщина стенки корпуса 43 мм
C27: Фото | D27: Модель | E27: Объем | F27: Размер | G27: Описание | H27: Цена*, Руб без НДС
D28: ШХФ-0,2 | E28: 200 | F28: 600x630x890 | G28: 3 полки, микропереключатель, сигнализация об отклонении температуры, внутренняя LED подсветка, замок | H28: 32525 29273
D29: ШХФ-04 | E29: 400 | F29: 600x630x1780 | G29: 4 полки, микропереключатель, сигнализация об отклонении температуры, внутренняя LED подсветка, замок | H29: 39390 35451
D30: ШХФ-0,5 | E30: 500 | F30: 697х695х1960 | G30: 4 полки, микропереключатель, сигнализация об отклонении температуры, внутренняя LED подсветка, замок | H30: 39500 35550
D31: ШХФ-0,7 | E31: 700 | F31: 697х925х1960 | G31: 4 полки, микропереключатель, сигнализация об отклонении температуры, внутренняя LED подсветка, замок | H31: 42990 38691
D32: ШХФ-1,0 | E32: 1000 | F32: 1402х695х1960 | G32: 8 полок, микропереключатель, сигнализация об отклонении температуры, внутренняя LED подсветка, замок | H32: 55250 49725
C33: Холодильные шкафы с металлическими дверьми
C34: Рабочий диапазон температур +1…+15° С, работают при температуре окр. среды до +40° С
C35: Xладагент R 134а. Толщина стенки корпуса 43 мм
C36: Фото | D36: Модель | E36: Объем | F36: Размер | G36: Описание | H36: Цена*, Руб без НДС
D37: ШХФ-1,4 | E37: 1400 | F37: 1402х925х1960 | G37: 8 полок, микропереключатель, сигнализация об отклонении температуры, внутренняя LED подсветка, замок | H37: 60990 54891
D38: ШХКФ-1,4 | E38: 700/700 | F38: 1402х925х1960 | G38: Двухкамерный. 8 полок, микропереключатель, сигнализация об отклонении температуры, внутренняя LED подсветка, замок | H38: 89900 80910
C60: Производитель оставляет за собой право частичного изменения технических характеристик оборудования без принципиальных изменений его эксплуатационных свойств

Sheet Без канапе
G2: 30.03.2020.
B5: ПРАЙС - ЛИСТ Холодильные шкафы POLAIR Standard со стеклянными дверьми без канапе
B7: Шкафы POLAIR Standard со стеклянной дверью имеют корпус с обшивками из стали с полимерным покрытием - снаружи и изнутри. Оснащены профессиональной динамической системой охлаждения. Термоизоляция – пенополиуретан. Корпус герметичный цельнозаливной. Шкафы имеют вертикальную внутреннюю подсветку. Двери в алюминиевых рамах с легкозаменяемым уплотнителем с магнитной вставкой имеют возможность перенавески.
B14: Базовые цены с учетом НДС | H14: * Цена не учитывает стоимость логистических услуг
B15: Холодильные шкафы со стеклянными дверьми. Рабочий диапазон температур +1…+10° С, работают при температуре окр. среды до +32° С
J16: Акция
B17: Xладагент R 134а. Толщина стенки корпуса 43 мм
B18: Фото | C18: Модель | D18: Линия | E18: Объем | F18: Размер | G18: Описание | H18: Цена*, Руб | J18: Цена*, Руб
C19: DM105-S без канапе | D19: Standard | E19: 500 | F19: 697х710х1960 | G19: Внутренний объем 500л, 4 полки, вертикальная внутренняя LED подсветка | H19: 43000 | J19: 37790
C20: DM107-S без канапе | D20: Standard | E20: 700 | F20: 697х945х1960 | G20: Внутренний объем 700л, 4 полки, вертикальная внутренняя LED подсветка, GN 2/1 | H20: 47777 | J20: 45550
C21: DM110-S без канапе | D21: Standard | E21: 1000 | F21: 1402х710х1960 | G21: Внутренний объем 1000л, 8 полок, вертикальная внутренняя подсветка, двери распашные | H21: 64640 | J21: 60600
C22: DM114-S без канапе | D22: Standard | E22: 1400 | F22: 1402х945х1960 | G22: Внутренний объем 1400л, 8 полок, вертикальная внутренняя LED подсветка, двери распашные, GN 2/1 | H22: 70000 | J22: 66550
B31: Производитель оставляет за собой право частичного изменения технических характеристик оборудования без принципиальных изменений его эксплуатационных свойств

Sheet DW
G2: 30.03.2020.
B6: ПРАЙС - ЛИСТ Холодильные шкафы для продажи и хранения вина
B8: Специализированные холодильные шкафы для экспозиции и хранения вина незаменимы в энотеках, ресторанах, барах, изысканных интерьерах продуктовых бутиков и т.п. Шкафы выполнены в мягких коричневых тонах, разработаны специально для создания необходимых для хранения вина условий
E10: Угольный фильтр обеспечивает необходимую влажность воздуха (от 50 до 80 %) внутри шкафа и удаляет неприятные запахи. Постоянное обновление воздуха внутри шкафа создает благоприятную атмосферу
E13: Деревянные полки, изготовленные из натурального дуба, позволяют комфортно, в нескольких вариантах экспозиции разместить бутылки с вином и подчеркивают премиальность экспонируемого товара
E17: Светодиодные лампы внутренней подсветки долговечны, устойчивы к вибрациям и смене температуры. Они потребляют на 80% меньше электроэнергии по сравнению с обычными лампами, не излучает ультрафиолетовые и инфракрасные лучи, кроме того, в них не содержится ртуть
E22: Специальное покрытие стекла двери защищает содержимое шкафа от воздействия инфракрасных и ультрафиолетовых лучей
E25: Холодильный шкаф DW104-Bravo имеет 6 температурных зон, позволяющих в одном охлаждаемом объеме экспонировать вина, нуждающиеся в разных температурах хранения: красные, белые и игристые. На 5 навесных и одной базовой полке - для наклонной экспозиции.
E29: Шкаф DW102-Bravo комплектуется полками из натурального дуба: двумя навесными и двухуровневой базовой структурой
B32: Базовые цены с учетом НДС | H32: Цена не учитывает стоимость логистических услуг
B33: Холодильные шкафы со стеклянными дверьми. Рабочий диапазон температур +4…+18° С, работают при температуре окр. среды до +32° С
B35: Xладагент R 134а. Толщина стенки монолитного цельнозаливного корпуса 43 мм
B36: Фото | C36: Модель | D36: Линия | E36: Объем | F36: Размер | G36: Описание | H36: Цена*, Руб
C37: DW104-Bravo | D37: Bravo | E37: 390 | F37: 606*630*1730 | G37: 6 деревянных полок: 5 навесных и 1 базовая, внутренняя LED подсветка, замок | H37: 57700
C38: DW102-Bravo | D38: Bravo | E38: 150 | F38: 606*625*890 | G38: 4 уровня выкладки, внутренняя LED подсветка, замок | H38: 40400
B47: Производитель оставляет за собой право частичного изменения технических характеристик оборудования без принципиальных изменений его эксплуатационных свойств

Sheet Столы хол
H2: 30.03.2020.
C5: ПРАЙС-ЛИСТ Холодильные столы
C7: Холодильные столы POLAIR представлены моделями - средне - и низкотемпературными.
C8: Среднетемпературные столы с глухими дверьми работают при температуре окружающей среды до +43°С.
C9: Диапазон рабочих температур от -2 до +10°С.
C10: Среднетемпературные столы со стеклянными дверьми работают при температуре окружающей среды до +32°С.
C11: Диапазон рабочих температур от +1 до +10°С - оптимальный для хранения напитков и продуктов.
C12: Низкотемпературные работают при температуре окружающей среды до +32°С. Температура -18°С.
C13: Динамическая система охлаждения гарантирует равномерное охлаждение продуктов
C14: Все элемены холодильной системы вынесены за пределы охлаждаемого пространства
C15: Двухъяресный холодильный агрегат расположен в узком агрегатном отсеке и полностью выдвигается для удобства обслуживания
C16: Столы соответствуют классу защиты электроприборов IP24
C17: Внешние (за исключением задней стенки) и внутренние обшивки корпуса выполнены из неравеющей стали
C18: Двери с термоизоляцией пенополиуретан полностью изготовлены из неравеющей стали. Рамы стеклянных дверей со стеклопакетами изготовлены из алюминия.
C19: Столешница толщиной 40 мм с бортом высотой 60 мм из нержавеющей стали позволяет применять ее в качестве полноценного рабочего стола. Возможна поставка столов без столешниц.
C20: Столешница из натурального гранита толщиной 40 мм в моделях для приготовления пиццы, ограниченная с 3 сторон бортами высотой 150 мм, позволяющими утсанавливать на них витрину для ингредиентов - идеальный вариант для организации рабочего места пиццайоло.
C21: Столы глубиной 700 мм гастронормированы - GN 1/1
C22: Любой отсек стола может быть оснащен блоком из выдвижных ящиков вместо глухих дверей:
C23: из 2 ящиков габаритных размеров 415х516/616x339 (200) из 3 ящиков - 415х516/616x224 (100) из 2 ящиков: верхний - 415х516/616x224 (100), нижний - 415х516/616x454 (320)
C24: Рекомендованную Розничную Цену любого стола, отличающегося от приведенных ниже, можно рассчитать в Программе подбора на сайте www.polair.com
C27: Базовые цены с учетом НДС | I27: * Цена не учитывает стоимость логистических услуг
C28: Холодильные столы среднетемпературные
C29: Рабочий диапазон температур -2...+ 10° С, работают при температуре окр. среды до + 43° С
C30: Хладагент R134a . Толщина стенки корпуса 43 мм
C31: Фото | D31: Модель | E31: Линия | F31: Объем, л | G31: Размер, мм | H31: Описание | I31: Цена*, Руб
D32: TM2-G | E32: Grande | F32: 270 | G32: 1200х605х850/910 | H32: Изготовлен из нерж стали 2 двери. Борт | I32: 58189.25593
D33: TM2GN-G | E33: Grande | F33: 320 | G33: 1200х705х850/910 | H33: Изготовлен из нерж стали 2 двери. Борт GN1/1 | I33: 59743.6261
D34: TM3-G | E34: Grande | F34: 400 | G34: 1630х605х850/910 | H34: Изготовлен из нерж стали 3 двери. Борт | I34: 68299.47458
D35: TM3GN-G | E35: Grande | F35: 450 | G35: 1630х705х850/910 | H35: Изготовлен из нерж стали 3 двери. Борт GN1/1 | I35: 70709.49153
D36: TM4-G | E36: Grande | F36: 550 | G36: 2060х605х850/909 | H36: Изготовлен из нерж стали 4 двери. Борт | I36: 82770.25424
D37: TM4GN-G | E37: Grande | F37: 600 | G37: 2060х705х850/910 | H37: Изготовлен из нерж стали 4 двери. Борт GN1/1 | I37: 84229.9322
C39: Холодильные столы низкотемпературные
C40: Температура: -18° С, работают при температуре окр. среды до +32° С
C41: Хладагент R404А . Толщина стенки корпуса 43 мм
C42: Фото | D42: Модель | E42: Линия | F42: Объем, л | G42: Размер, мм | H42: Описание | I42: Цена*, Руб
D43: TВ2GN-G | E43: Grande | F43: 320 | G43: 1200х705х850/910 | H43: Изготовлен из нерж стали 2 двери. Борт GN1/1 | I43: 69689.74576
D44: TB3GN-G | E44: Grande | F44: 450 | G44: 1630х705х850/910 | H44: Изготовлен из нерж стали 3 двери. Борт GN1/1 | I44: 85442.52203
D45: TB4GN-G | E45: Grande | F45: 600 | G45: 2060х705х850/910 | H45: Изготовлен из нерж стали 4 двери. Борт GN1/1 | I45: 104612.0339
C46: Холодильные столы среднетемпературные для приготовления пиццы
C47: Рабочий диапазон температур -2...+ 10° С, работают при температуре окр. среды до + 43° С
C48: Хладагент R134a . Толщина стенки корпуса 43 мм
C49: Фото | D49: Модель | E49: Линия | F49: Объем, л | G49: Размер, мм | H49: Описание | I49: Цена*, Руб
D50: TM2pizza-G | E50: Grande | F50: 270 | G50: 1200х605х850/1000 | H50: Изготовлен из нерж стали. Столешница - натуральный гранит. Борт высотой 150 мм. | I50: 101844.0648
D51: TM2GNpizza-G | E51: Grande | F51: 320 | G51: 1200х705х850/1000 | H51: Изготовлен из нерж стали. Столешница - натуральный гранит. Борт высотой 150 мм. GN1/1 | I51: 109342.9442
D52: TM3pizza-G | E52: Grande | F52: 400 | G52: 1630х605х850/1000 | H52: Изготовлен из нерж стали. Столешница - натуральный гранит. Борт высотой 150 мм. | I52: 118432.6536
D53: TM3GNpizza-G | E53: Grande | F53: 450 | G53: 1630х705х850/1000 | H53: Изготовлен из нерж стали. Столешница - натуральный гранит. Борт высотой 150 мм. GN1/1 | I53: 121650.3839
C54: Холодильные столы среднетемпературные со стеклянными дверьми
C55: Рабочий диапазон температур +1...+ 10° С, работают при температуре окр. среды до + 32° С
C56: Хладагент R134a . Толщина стенки корпуса 43 мм
C57: Фото | D57: Модель | E57: Линия | F57: Объем, л | G57: Размер, мм | H57: Описание | I57: Цена*, Руб
D58: TD2-G | E58: Grande | F58: 270 | G58: 1200х605х850/910 | H58: Изготовлен из нерж стали. LED подсветка. 2 двери со стеклопакетами в алюминиевых рамах. Борт | I58: 63848.57797
D59: TD2GN-G | E59: Grande | F59: 320 | G59: 1200х705х850/910 | H59: Изготовлен из нерж стали. LED подсветка. 2 двери со стеклопакетами в алюминиевых рамах. Борт. GN1/1 | I59: 65402.94814
D60: TD3-G | E60: Grande | F60: 400 | G60: 1630х605х850/910 | H60: Изготовлен из нерж стали. LED подсветка. 3 двери со стеклопакетами в алюминиевых рамах. Борт | I60: 76788.45763
D61: TD3GN-G | E61: Grande | F61: 450 | G61: 1630х705х850/910 | H61: Изготовлен из нерж стали. LED подсветка. 3 двери со стеклопакетами в алюминиевых рамах. Борт. GN1/1 | I61: 79198.47458
C63: Производитель оставляет за собой право частичного изменения технических характеристик оборудования без принципиальных изменений его эксплуатационных свойств

Sheet Витр ингр
H2: 30.03.2020.
C4: ПРАЙС-ЛИСТ настольные витрины
C6: Настольные охлаждаемые витрины (витрины для ингредиентов) могут использоваться вместе со столами для пиццы и как отдельные единицы холодильного оборудования
C7: Предназначены для установки как с фиксацией на бортах гранитной столешницы столов для пиццы, так и на любых ровных поверхностях (благодаря наличию регулируемых по высоте стопок). В том числе - на столешницах холодильных и нейтральных столов, элементах линий раздачи, барных стойках, прилавках и т.п.
C8: Поставляются в трех вариантах исполнения – витрины открытого типа (предназначена для применения с гаcтроемкостями с крышками), с поднимающейся крышкой из нержавеющей стали, с защитным стеклянным колпаком и светодиодной подсветкой. Рассчитаны на применение стандартных гастроемкостей. Гастроемкости в комплект поставки витрин не входят.
C9: Внешние и внутренние обшивки корпуса витрин выполнены из пищевой нержавеющей стали
C10: Витрины работают при температуре окружающей среды от +12 до +32°С.
C11: Диапазон рабочих температур от +2 до +10°С.
C12: Оснащены статической системой охлаждения. Хладагент R134a. В качестве терморегулятора применен электронный блок управления.
C13: Оттайка автоматическая с системой испарения конденсата.
C15: Базовые цены с учетом НДС | I15: * Цена не учитывает стоимость логистических услуг
C16: Настольные витрины среднетемпературные
C17: Рабочий диапазон температур +2...+ 10° С, работают при температуре окр. среды до + 32° С
C18: Хладагент R134a
C19: Фото | D19: Модель | E19: Линия | F19: Кол-во гастроемкостей* | G19: Размер, мм | H19: Описание | I19: Цена*, Руб
C20: Витрины для установки на борта столов для пиццы POLAIR с боковым расположением агрегата
C21: Под гастроемкости GN 1/3
D22: VT2-G (1/3) | E22: Grande | F22: 3+2 | G22: 1200х400х220 | H22: Витрина открытого типа. Рассчитана на гастроемкости (3xGN1/3 и 2хGN 1/2) | I22: 27634.95
D23: VT2-G (1/3) с крышкой | E23: Grande | F23: 3+2 | G23: 1200х400х245 | H23: Витрина с откидной крышкой из нерж стали. Рассчитана на гастроемкости (3xGN1/3 и 2хGN 1/2) | I23: 29660.4
D24: VT2v-G (1/3) | E24: Grande | F24: 3+2 | G24: 1200х400х420 | H24: Витрина со стеклянным защитным колпаком с LED подсветкой. Рассчитана на гастроемкости (3xGN1/3 и 2хGN 1/2) | I24: 36294.3
D25: VT3-G (1/3) | E25: Grande | F25: 7 | G25: 1630х400х220 | H25: Витрина открытого типа. Рассчитана на гастроемкости GN1/3 | I25: 29353.8
D26: VT3-G (1/3) с крышкой | E26: Grande | F26: 7 | G26: 1630х400х245 | H26: Витрина с откидной крышкой из нерж стали. Рассчитана на гастроемкости GN1/3 | I26: 31275.3
D27: VT3v-G (1/3) | E27: Grande | F27: 7 | G27: 1630х400х420 | H27: Витрина со стеклянным защитным колпаком с LED подсветкой. Рассчитана на гастроемкости GN1/3 | I27: 39113.55
C28: Под гастроемкости GN 1/4
D29: VT2-G (1/4) | E29: Grande | F29: 5 | G29: 1200х340х220 | H29: Витрина открытого типа. Рассчитана на гастроемкости GN1/4 | I29: 26775
D30: VT2-G (1/4) с крышкой | E30: Grande | F30: 5 | G30: 1200х340х245 | H30: Витрина с откидной крышкой из нерж стали. Рассчитана на гастроемкости GN1/4 | I30: 28875
D31: VT2v-G (1/4) | E31: Grande | F31: 5 | G31: 1200х340х420 | H31: Витрина со стеклянным защитным колпаком с LED подсветкой. Рассчитана на гастроемкости GN1/4 | I31: 34566
D32: VT3-G (1/4) | E32: Grande | F32: 7 | G32: 1630х340х220 | H32: Витрина открытого типа. Рассчитана на гастроемкости GN1/4 | I32: 27573
D33: VT3-G (1/4) с крышкой | E33: Grande | F33: 7 | G33: 1630х340х245 | H33: Витрина с откидной крышкой из нерж стали. Рассчитана на гастроемкости GN1/4 | I33: 29534.4
D34: VT3v-G (1/4) | E34: Grande | F34: 7 | G34: 1630х340х420 | H34: Витрина со стеклянным защитным колпаком с LED подсветкой. Рассчитана на гастроемкости GN1/4 | I34: 35805
C35: Витрины для установки на борта столов для пиццы POLAIR с нижним расположением агрегата
C36: Под гастроемкости GN 1/3
D37: VTi2-G (1/3) | E37: Grande | F37: 3 | G37: 900х400х220 | H37: Витрина открытого типа. Рассчитана на гастроемкости GN1/3 | I37: 26250
D38: VTi2-G (1/3) с крышкой | E38: Grande | F38: 3 | G38: 900х400х245 | H38: Витрина с откидной крышкой из нерж стали. Рассчитана на гастроемкости GN1/3 | I38: 28203
D39: VTi2v-G (1/3) | E39: Grande | F39: 3 | G39: 900х400х420 | H39: Витрина со стеклянным защитным колпаком с LED подсветкой. Рассчитана на гастроемкости GN1/3 | I39: 34335
D40: VTi3-G (1/3) | E40: Grande | F40: 5 | G40: 1375х400х220 | H40: Витрина открытого типа. Рассчитана на гастроемкости GN1/3 | I40: 29085
D41: VTi3-G (1/3) с крышкой | E41: Grande | F41: 5 | G41: 1375х400х245 | H41: Витрина с откидной крышкой из нерж стали. Рассчитана на гастроемкости GN1/3 | I41: 31036.95
D42: VTi3v-G (1/3) | E42: Grande | F42: 5 | G42: 1375х400х420 | H42: Витрина со стеклянным защитным колпаком с LED подсветкой. Рассчитана на гастроемкости GN1/3 | I42: 37642.5
D43: VTi4-G (1/3) | E43: Grande | F43: 8 | G43: 1850х400х220 | H43: Витрина открытого типа. Рассчитана на гастроемкости GN1/3 | I43: 31500
D44: VTi4-G (1/3) с крышкой | E44: Grande | F44: 8 | G44: 1850х400х245 | H44: Витрина с откидной крышкой из нерж стали. Рассчитана на гастроемкости GN1/3 | I44: 33705
D45: VTi4v-G (1/3) | E45: Grande | F45: 8 | G45: 1850х400х420 | H45: Витрина со стеклянным защитным колпаком с LED подсветкой. Рассчитана на гастроемкости GN1/3 | I45: 41044.5
C46: Под гастроемкости GN 1/4
D47: VTi2-G (1/4) | E47: Grande | F47: 3 | G47: 900х340х220 | H47: Витрина открытого типа. Рассчитана на гастроемкости (3xGN1/4 и 1хGN 1/2) | I47: 25016.25
D48: VTi2-G (1/4) с крышкой | E48: Grande | F48: 3 | G48: 900х340х245 | H48: Витрина с откидной крышкой из нерж стали. Рассчитана на гастроемкости (3xGN1/4 и 1хGN 1/2) | I48: 26775
D49: VTi2v-G (1/4) | E49: Grande | F49: 3 | G49: 900х340х420 | H49: Витрина со стеклянным защитным колпаком с LED подсветкой. Рассчитана на гастроемкости (3xGN1/4 и 1хGN 1/2) | I49: 32539.5
D50: VTi3-G (1/4) | E50: Grande | F50: 6 | G50: 1375х340х220 | H50: Витрина открытого типа. Рассчитана на гастроемкости GN1/4 | I50: 27573
D51: VTi3-G (1/4) с крышкой | E51: Grande | F51: 6 | G51: 1375х340х245 | H51: Витрина с откидной крышкой из нерж стали. Рассчитана на гастроемкости GN1/4 | I51: 29534.4
D52: VTi3v-G (1/4) | E52: Grande | F52: 6 | G52: 1375х340х420 | H52: Витрина со стеклянным защитным колпаком с LED подсветкой. Рассчитана на гастроемкости GN1/4 | I52: 35805
D53: VTi4-G (1/4) | E53: Grande | F53: 9 | G53: 1850х340х220 | H53: Витрина открытого типа. Рассчитана на гастроемкости GN1/4 | I53: 29925
D54: VTi4-G (1/4) с крышкой | E54: Grande | F54: 9 | G54: 1850х340х245 | H54: Витрина с откидной крышкой из нерж стали. Рассчитана на гастроемкости GN1/4 | I54: 32077.5
D55: VTi4v-G (1/4) | E55: Grande | F55: 9 | G55: 1850х340х420 | H55: Витрина со стеклянным защитным колпаком с LED подсветкой. Рассчитана на гастроемкости GN1/4 | I55: 38923.5
C59: * приведены значения максимального кол-ва гастроемкостей. Гастроемкости в комплект поставки не входят.
C60: Производитель оставляет за собой право частичного изменения технических характеристик оборудования без принципиальных изменений его эксплуатационных свойств

Sheet Столы с охл ст
C2: 30.03.2020.
A5: ПРАЙС - ЛИСТ Cтолы с охлаждаемой столешницей POLAIR Grande
A7: Столы идеальны для использования в условиях высоких внешних температур, особенно при работе со скоропортящимися продуктами. Удобны для оснащения рынков в отделах, где традиционно применяется открытая выкладка продуктов. Оптимальны для ресторанов восточной кухни - для приготовления блюд, в том числе, из сырых рыбы и морепродуктов. Заглубление столешницы и наличие дренажного отверстия позволяют разделывать на столах мясо, рыбу, в том числе, дефростированные, и иные продукты, при обработке которых выделяется большое количество жидкости, используется лед, образуется влага и т.п. Комплектация стола полкой дает возможность эффективно использовать и пространство под столешницей. Изготовлены столы из пищевой нержавеющей стали
A10: Базовые цены с учетом НДС | D10: Цена не учитывает стоимость логистических услуг
A11: Холодильные столы с охлаждаемой столешницей
A12: Рабочий диапазон температур +1…+10° С
A13: Столы работают при температуре окужающей среды до +32° С
A14: Фото | B14: Модель | C14: Размер | D14: Цена, Руб с НДС
B15: TT1,0GN-G | C15: 1000х700х850 | D15: 42210
B16: TT1,2GN-G | C16: 1200х700х850 | D16: 44310
B17: TT1,4GN-G | C17: 1400х700х850 | D17: 45930.15
B18: TT1,5GN-G | C18: 1500х700х850 | D18: 47726.7
A22: Производитель оставляет за собой право частичного изменения технических характеристик оборудования без принципиальных изменений его эксплуатационных свойств

Sheet Столы bu
H2: 30.03.2020.
C4: ПРАЙС-ЛИСТ Холодильные столы
C5: с нижним расположением агрегатов
C7: Холодильные столы POLAIR с нижним расположением агрегатов имеют полностью цельнозаливные корпуса (включая верхнюю чать корпуса)
C8: Среднетемпературные столы с глухими дверьми работают при температуре окружающей среды до +43°С.
C9: Диапазон рабочих температур от -2 до +10°С.
C10: Низкотемпературные работают при температуре окружающей среды до +32°С. Рабочая температура не выше -18°С.
C11: Динамическая система охлаждения гарантирует равномерное охлаждение продуктов
C12: Холодильный агрегат полностью выдвигается для удобства обслуживания
C13: Столы соответствуют классу защиты электроприборов IP24
C14: Внешние (за исключением задней стенки) и внутренние обшивки корпуса выполнены из неравеющей стали
C15: Двери с термоизоляцией пенополиуретан полностью изготовлены из неравеющей стали.
C16: Столешница толщиной 40 мм из нержавеющей стали позволяет применять ее в качестве полноценного рабочего стола. Возможна поставка столов без столешниц.
C17: Столы глубиной 700 мм гастронормированы - GN 1/1. Верхняя часть саладетты - 2xGN1/1+2GN1/4
C18: Любой отсек стола (кроме саладетты) может быть оснащен ящиками вместо дверей - одним высоким или двумя средними
C19: Рекомендованную Розничную Цену любого стола, отличающегося от приведенных ниже, можно рассчитать в Программе подбора на сайте www.polair.com
C21: Базовые цены с учетом НДС | I21: * Цена не учитывает стоимость логистических услуг
C22: Холодильные столы среднетемпературные
C23: Рабочий диапазон температур -2...+ 10° С, работают при температуре окр. среды до + 43° С
C24: Хладагент R134a . Толщина стенки корпуса 43 мм
C25: Фото | D25: Модель | E25: Линия | F25: Объем, л | G25: Размер, мм | H25: Описание | I25: Цена*, Руб
D26: TMi2-G | E26: Grande | F26: 153 | G26: 900х600х850/910 | H26: Изготовлен из нерж стали снаружи* и изнутри 2 двери. | I26: 49091.7
D27: TMi2GN-G | E27: Grande | F27: 184 | G27: 900х700х850/910 | H27: Изготовлен из нерж стали снаружи* и изнутри 2 двери. GN1/1 | I27: 52405.5
D28: TMi3-G | E28: Grande | F28: 230 | G28: 1375х600х850/910 | H28: Изготовлен из нерж стали снаружи* и изнутри 3 двери. | I28: 67305
D29: TMi3GN-G | E29: Grande | F29: 276 | G29: 1375х700х850/910 | H29: Изготовлен из нерж стали снаружи* и изнутри 3 двери. GN1/1 | I29: 70770
D30: TMi4-G | E30: Grande | F30: 306 | G30: 1850х600х850/910 | H30: Изготовлен из нерж стали снаружи* и изнутри 4 двери. Борт | I30: 83989.5
D31: TMi4GN-G | E31: Grande | F31: 368 | G31: 1850х700х850/910 | H31: Изготовлен из нерж стали снаружи* и изнутри 4 двери. GN1/1 | I31: 88620
C32: Саладетта
C33: Рабочий диапазон температур 0...+ 10° С, работают при температуре окр. среды до + 32° С
C34: Хладагент R134a . Толщина стенки корпуса 43 мм
C35: Фото | D35: Модель | E35: Линия | F35: Объем, л | G35: Размер, мм | H35: Описание | I35: Цена*, Руб
D36: TMi2GNsal-G | E36: Grande | F36: 184 | G36: 900х700х850 | H36: Изготовлен из нерж стали снаружи* и изнутри 2 двери. Доска для нарезки - полипропилен. Крышка из нерж стали. GN1/1 + 1/4** | I36: 64057.11864
C37: Холодильные столы низкотемпературные
C38: Рабочий диапазон температур не выше -18° С, работают при температуре окр. среды до +32° С
C39: Хладагент R404А . Толщина стенки корпуса 43 мм
C40: Фото | D40: Модель | E40: Линия | F40: Объем, л | G40: Размер, мм | H40: Описание | I40: Цена*, Руб
D41: TВi2-G | E41: Grande | F41: 153 | G41: 900х600х850/910 | H41: Изготовлен из нерж стали снаружи* и изнутри 2 двери. Электрическая оттайка | I41: 58194.91525
D42: TВi2GN-G | E42: Grande | F42: 184 | G42: 900х700х850/910 | H42: Изготовлен из нерж стали снаружи* и изнутри 2 двери. Электрическая оттайка GN1/1 | I42: 59262.71186
D43: TBi3-G | E43: Grande | F43: 230 | G43: 1375х600х850/910 | H43: Изготовлен из нерж стали снаружи* и изнутри 3 двери. Электрическая оттайка | I43: 76561.01695
D44: TBi3GN-G | E44: Grande | F44: 276 | G44: 1375х700х850/910 | H44: Изготовлен из нерж стали снаружи* и изнутри 3 двери. Электрическая оттайка GN1/1 | I44: 78344.23729
D45: TBi4-G | E45: Grande | F45: 306 | G45: 1850х600х850/910 | H45: Изготовлен из нерж стали 4 двери. Электрическая оттайка | I45: 94710
D46: TBi4GN-G | E46: Grande | F46: 368 | G46: 1850х700х850/910 | H46: Изготовлен из нерж стали снаружи* и изнутри 4 двери. Электрическая оттайка GN1/1 | I46: 99687
C47: Холодильные столы среднетемпературные для приготовления пиццы
C48: Рабочий диапазон температур -2...+ 10° С, работают при температуре окр. среды до + 43° С
C49: Хладагент R134a . Толщина стенки корпуса 43 мм
C50: Фото | D50: Модель | E50: Линия | F50: Объем, л | G50: Размер, мм | H50: Описание | I50: Цена*, Руб
D51: TMi2pizza-G | E51: Grande | F51: 153 | G51: 900х600х850/1000 | H51: Изготовлен из нерж стали снаружи* и изнутри. Столешница - натуральный гранит. Борт высотой 150 мм. | I51: 89985
D52: TMi2GNpizza-G | E52: Grande | F52: 184 | G52: 900х700х850/1000 | H52: Изготовлен из нерж стали снаружи* и изнутри. Столешница - натуральный гранит. Борт высотой 150 мм. GN1/1 | I52: 94778.25
D53: TMi3pizza-G | E53: Grande | F53: 230 | G53: 1375х600х850/1000 | H53: Изготовлен из нерж стали снаружи* и изнутри. Столешница - натуральный гранит. Борт высотой 150 мм. | I53: 115080
D54: TMi3GNpizza-G | E54: Grande | F54: 276 | G54: 1375х700х850/1000 | H54: Изготовлен из нерж стали снаружи* и изнутри. Столешница - натуральный гранит. Борт высотой 150 мм. GN1/1 | I54: 119175
D55: TMi4pizza-G | E55: Grande | F55: 306 | G55: 1850х600х850/1000 | H55: Изготовлен из нерж стали снаружи* и изнутри. Столешница - натуральный гранит. Борт высотой 150 мм. | I55: 143850
D56: TMi4GNpizza-G | E56: Grande | F56: 368 | G56: 1850х700х850/1000 | H56: Изготовлен из нерж стали снаружи* и изнутри. Столешница - натуральный гранит. Борт высотой 150 мм. GN1/1 | I56: 146989.5
C58: Производитель оставляет за собой право частичного изменения технических характеристик оборудования без принципиальных изменений его эксплуатационных свойств
C60: * за исключением внешней задней стенки
C61: **гастроемкости в комплект поставки не входят

Sheet Столы GC
H2: 30.03.2020.
C4: ПРАЙС-ЛИСТ
C5: Холодильные столы кубического дизайна
C7: Холодильные столы POLAIR GC отличает легкий изящный дизайн
C8: Среднетемпературные столы с глухими дверьми работают при температуре окружающей среды до +43°С.
C9: Диапазон рабочих температур от -2 до +10°С.
C10: Среднетемпературные столы со стеклянными дверьми работают при температуре окружающей среды до +32°С.
C11: Диапазон рабочих температур от +1 до +10°С.
C12: Низкотемпературные работают при температуре окружающей среды до +32°С. Температура: -18°С.
C13: Компактный цельнозаливной корпус обеспечиывает надежное хранение продуктов при высоких внешних температурах
C14: Динамическая система охлаждения гарантирует равномерное охлаждение
C15: Все элемены холодильной системы вынесены за пределы охлаждаемого пространства
C16: Двухъяресный холодильный агрегат расположен в узком агрегатном отсеке и выдвигается для обслуживания
C17: Столешница толщиной 40 мм с бортом высотой 60 мм из нержавеющей стали позволяет применять ее в качестве полноценного рабочего стола. Возможна поставка столов без столешниц.
C18: Любой отсек среднетемпературного стола может быть оснащен блоком из выдвижных ящиков вместо глухих дверей:
C19: из 2 ящиков габаритных размеров 415х516/616x339 (200) из 3 ящиков - 415х516/616x224 (100) из 2 ящиков: верхний - 415х516/616x224 (100), нижний - 415х516/616x454 (320)
C21: Рекомендованную Розничную Цену любого стола, отличающегося от приведенных ниже, можно рассчитать в Программе подбора на сайте www.polair.com
C23: Базовые цены с учетом НДС | I23: * Цена не учитывает стоимость логистических услуг
C24: Холодильные столы среднетемпературные
C25: Рабочий диапазон температур -2...+ 10° С, работают при температуре окр. среды до + 43° С
C26: Хладагент R134a . Толщина стенки корпуса 43 мм
C27: Фото | D27: Модель | E27: Линия | F27: Объем, л | G27: Размер, мм | H27: Описание | I27: Цена*, Руб
D28: TM2-GC | E28: Grande С | F28: 270 | G28: 1200х605х850/910 | H28: Изготовлен из нерж стали 2 двери. Борт | I28: 56328.19322
D29: TM2GN-GC | E29: Grande С | F29: 320 | G29: 1200х705х850/910 | H29: Изготовлен из нерж стали 2 двери. Борт GN1/1 | I29: 57927.9661
D30: TM3-GC | E30: Grande С | F30: 400 | G30: 1630х605х850/910 | H30: Изготовлен из нерж стали 3 двери. Борт | I30: 66162.0661
D31: TM3GN-GC | E31: Grande С | F31: 450 | G31: 1630х705х850/910 | H31: Изготовлен из нерж стали 3 двери. Борт GN1/1 | I31: 67466.78542
D32: TM4GN-GC | E32: Grande С | F32: 600 | G32: 2060х705х850/910 | H32: Изготовлен из нерж стали 4 двери. Борт GN1/1 | I32: 82572.71186
C33: Холодильные столы низкотемпературные
C34: Температура: -18° С, работают при температуре окр. среды до +32° С
C35: Хладагент R404А . Толщина стенки корпуса 43 мм
C36: Фото | D36: Модель | E36: Линия | F36: Объем, л | G36: Размер, мм | H36: Описание | I36: Цена*, Руб
D37: TВ2GN-GC | E37: Grande С | F37: 320 | G37: 1200х705х850/910 | H37: Изготовлен из нерж стали 2 двери. Борт GN1/1 | I37: 67484.74576
D38: TB3GN-GC | E38: Grande С | F38: 450 | G38: 1630х705х850/910 | H38: Изготовлен из нерж стали 3 двери. Борт GN1/1 | I38: 82294.63627
D39: TB4GN-GC | E39: Grande С | F39: 600 | G39: 2060х705х850/910 | H39: Изготовлен из нерж стали 4 двери. Борт GN1/1 | I39: 101184.4068
C40: Холодильные столы среднетемпературные для приготовления пиццы
C41: Рабочий диапазон температур -2...+ 10° С, работают при температуре окр. среды до + 43° С
C42: Хладагент R134a . Толщина стенки корпуса 43 мм
C43: Фото | D43: Модель | E43: Линия | F43: Объем, л | G43: Размер, мм | H43: Описание | I43: Цена*, Руб
D44: TM2pizza-GC | E44: Grande С | F44: 270 | G44: 1200х605х850/1000 | H44: Изготовлен из нерж стали. Столешница - натуральный гранит. Борт высотой 150 мм. | I44: 99705.18814
D45: TM2GNpizza-GC | E45: Grande С | F45: 320 | G45: 1200х705х850/1000 | H45: Изготовлен из нерж стали. Столешница - натуральный гранит. Борт высотой 150 мм. GN1/1 | I45: 106773.2008
D46: TM3pizza-GC | E46: Grande С | F46: 400 | G46: 1630х605х850/1000 | H46: Изготовлен из нерж стали. Столешница - натуральный гранит. Борт высотой 150 мм. | I46: 115343.8063
D47: TM3GNpizza-GC | E47: Grande С | F47: 450 | G47: 1630х705х850/1000 | H47: Изготовлен из нерж стали. Столешница - натуральный гранит. Борт высотой 150 мм. GN1/1 | I47: 117744.149
C59: Производитель оставляет за собой право частичного изменения технических характеристик оборудования без принципиальных изменений его эксплуатационных свойств

Sheet Камеры со стеклом
E2: 2020-03-30
B5: ПРАЙС - ЛИСТ КАМЕРЫ ХОЛОДИЛЬНЫЕ МОДУЛЬНЫЕ СО СТЕКЛОМ
B7: Все холодильные камеры со стеклом выпускаются на базе стандартных камер "Полаир" с толщиной панелей 80 мм. Размер стеклянного блока по высоте 1830 мм. Стеклянные дверные блоки одностворчатые имееют ширину 900 мм, двухстворчатые - 1200 мм.
B9: Комплектация: профиль соединительный для соединения стеклоблоков друг с другом; профиль отделочный с внутренней
B10: и наружной стороны камеры; ручка двери; замок (по запросу); метизы.
E12: Цена, Руб.
B13: КХН-2,94cт(1360*1360*2200) | C13: Стекл. блок по стороны 1360, дверь унив.по смежной стороне | E13: 74104.8
C14: Стекл.блок с двухстворчатой дверью по стороне 1360 | E14: 83170.5
C15: Стекл. блок по двум сторонам, дв.стекл. двухств. по стороне 1360 | E15: 96331.2
B18: КХН-4,41ст(1960*1360*2200) | C18: Стекл. блок по стороны 1960, дверь унив.по смежной стороне | E18: 88958.1
C19: Стекл.блок с одностворчатой дверью по стороне 1960 | E19: 88509.75
C20: Стекл. блок по двум смежным сторонам, дв.стекл. одноств.по ст.1960 | E20: 99689.1
B23: КХН-6,61ст(1960*1960*2200) | C23: Стекл. блок по стороны 1960, дверь унив.по смежной стороне | E23: 104825.7
C24: Стекл.блок с одностворчатой дверью по стороне 1960 | E24: 104377.35
C25: Стекл. блок по двум смежным сторонам, дв.стекл. одноств.по ст.1960 | E25: 119438.55
B29: КХН-7,71ст(2260*1960*2200) | C29: Стекл. блок по стороны 2260, дверь унив.по смежной стороне | E29: 117083.4
C30: Стекл.блок с одностворчатой дверью по стороне 2260 | E30: 116635.05
C31: Стекл. блок по двум смежным сторонам, дв.стекл. одноств.по ст.2260 | E31: 128947.35
B34: КХН-8,81ст(2560*1960*2200) | C34: Стекл. блок по стороны 1960, дверь унив.по смежной стороне | E34: 120693
C35: Стекл.блок с одностворчатой дверью по стороне 1960 | E35: 120245
C36: Стекл. блок по стороны 2560, дверь унив.по смежной стороне | E36: 125744
C37: Стекл.блок с одностворчатой дверью по стороне 2560 | E37: 125295
C38: Стекл. блок по двум смежным сторонам, дв.стекл. одноств.по ст.2560 | E38: 138525
B40: КХН-11,02ст(3160*1960*2200) | C40: Стекл. блок по стороны 1960, дверь унив.по смежной стороне | E40: 136560.9
C41: Стекл.блок с одностворчатой дверью по стороне 1960 | E41: 136112.55
C42: Стекл. блок по стороны 3160, дверь унив.по смежной стороне | E42: 146661.9
C43: Стекл.блок с одностворчатой дверью по стороне 3160 | E43: 146213.55
C44: Стекл. блок по двум сторонам, дв.стекл. одноств.по ст.3160 | E44: 157617.6
C45: Стекл. блок по двум сторонам, дв.стекл. двухств.по ст.3160 | E45: 171263.4
B47: КХН-11,75ст(2560*2560*2200) | C47: Стекл. блок по стороны 2560, дверь унив.по смежной стороне | E47: 144077.85
C48: Стекл.блок с одностворчатой дверью по стороне 2560 | E48: 143619
C49: Стекл. блок по двум смежным сторонам, дв.стекл. одноств.по ст.2560 | E49: 160585.95
B52: Производитель оставляет за собой право частичного изменения технических характеристик оборудования без принципиальных изменений его эксплуатационных свойств

Sheet Камеры-Standard 80
G3: 2020-03-30
A4: Сборно-разборные холодильные камеры из сендвич-панелей с соединением ШИП-ПАЗ из жесткого ПВХ
G7: толщина панели 80 мм
A8: ПРАЙС-ЛИСТ - КАМЕРЫ POLAIR Standard (80мм) ИЗ СТАНДАРТНЫХ ПАНЕЛЕЙ
A9: Базовые цены с учетом НДС
A10: Внешние габариты | C10: Высота 2 200 мм | E10: Высота 2 460 мм | G10: Высота 2 720 мм
A11: Длина | B11: Ширина | C11: объём, м3 | D11: Цена, Руб. | E11: объём, м3 | F11: Цена, Руб. | G11: объём, м3 | H11: Цена, Руб.
A12: 1360 | B12: 1360 | C12: 2.94 | D12: 0 | E12: 3.31 | F12: 65703.3992 | G12: 3.69 | H12: 70330.16814
B13: 1660 | C13: 3.67 | D13: 68010.70308 | E13: 4.14 | F13: 72530.6068 | G13: 4.61 | H13: 77628.0266
B14: 1960 | C14: 4.41 | D14: 0 | E14: 4.97 | F14: 79358.32529 | G14: 5.53 | H14: 84925.88505
B15: 2260 | C15: 5.14 | D15: 80712.04786 | E15: 5.8 | F15: 86186.25456 | G15: 6.45 | H15: 92235.51424
B16: 2560 | C16: 5.88 | D16: 87079.93037 | E16: 6.62 | F16: 93024.15378 | G16: 7.37 | H16: 99533.37269
B17: 2860 | C17: 6.61 | D17: 93424.35892 | E17: 7.45 | F17: 99839.41192 | G17: 8.29 | H17: 106831.2311
B18: 3160 | C18: 7.34 | D18: 99768.78748 | E18: 8.28 | F18: 106666.4408 | G18: 9.22 | H18: 114129.0896
B19: 3460 | C19: 8.08 | D19: 106136.7575 | E19: 9.11 | F19: 113493.4697 | G19: 10.14 | H19: 121438.7188
B20: 3760 | C20: 8.81 | D20: 112481.1861 | E20: 9.94 | F20: 120320.4985 | G20: 11.06 | H20: 128724.8065
B21: 4060 | C21: 9.55 | D21: 118849.1561 | E21: 10.76 | F21: 127147.5274 | G21: 11.98 | H21: 136022.665
B22: 4360 | C22: 10.28 | D22: 125193.5847 | E22: 11.59 | F22: 133974.5563 | G22: 12.9 | H22: 143320.5234
B23: 4660 | C23: 11.02 | D23: 131561.5547 | E23: 12.42 | F23: 140872.2096 | G23: 13.82 | H23: 150618.3819
B24: 4960 | C24: 11.75 | D24: 137905.9833 | E24: 13.25 | F24: 147628.614 | G24: 14.75 | H24: 157928.011
B25: 5260 | C25: 12.48 | D25: 144262.1826 | E25: 14.08 | F25: 154455.6429 | G25: 15.67 | H25: 165225.8695
B26: 5560 | C26: 13.22 | D26: 150618.3819 | E26: 14.9 | F26: 161282.6718 | G26: 16.59 | H26: 172523.7279
A27: 1660 | B27: 1660 | C27: 4.59 | D27: 74956.06874 | E27: 5.17 | F27: 79946.86227 | G27: 5.76 | H27: 85526.19276
B28: 1960 | C28: 5.51 | D28: 81900.80501 | E28: 6.21 | F28: 87433.05255 | G28: 6.91 | H28: 93400.81744
B29: 2260 | C29: 6.43 | D29: 88821.9998 | E29: 7.25 | F29: 94766.22322 | G29: 8.06 | H29: 101275.4421
B30: 2560 | C30: 7.34 | D30: 95766.73607 | E30: 8.28 | F30: 102181.7891 | G30: 9.22 | H30: 105489.3668
B31: 2860 | C31: 8.26 | D31: 102699.7016 | E31: 9.31 | F31: 109585.5842 | G31: 10.37 | H31: 117048.233
B32: 3160 | C32: 9.18 | D32: 109644.4379 | E32: 10.35 | F32: 116989.3793 | G32: 11.52 | H32: 124922.8577
B33: 3460 | C33: 10.1 | D33: 116577.4034 | E33: 11.39 | F33: 124416.7159 | G33: 12.67 | H33: 132821.0238
B34: 3760 | C34: 11.02 | D34: 123522.1397 | E34: 12.42 | F34: 131820.511 | G34: 13.82 | H34: 140695.6485
B35: 4060 | C35: 11.93 | D35: 130466.8759 | E35: 13.46 | F35: 139236.0768 | G35: 14.98 | H35: 148593.8147
B36: 4360 | C36: 12.85 | D36: 137388.0707 | E36: 14.49 | F36: 146639.8719 | G36: 16.13 | H36: 156468.4394
B37: 4660 | C37: 13.77 | D37: 144332.807 | E37: 15.53 | F37: 154055.4378 | G37: 17.28 | H37: 164343.064
B38: 4960 | C38: 14.69 | D38: 151265.7725 | E38: 16.56 | F38: 161459.2329 | G38: 18.43 | H38: 169204.3794
B39: 5260 | C39: 15.61 | D39: 158210.5088 | E39: 17.59 | F39: 168874.7987 | G39: 19.58 | H39: 172241.2302
B40: 5560 | C40: 16.52 | D40: 165143.4743 | E40: 18.63 | F40: 176278.5938 | G40: 20.74 | H40: 176054.9498
A41: 1960 | B41: 1960 | C41: 6.61 | E41: 7.45 | F41: 95354.76019 | G41: 8.29 | H41: 97814.84473
B42: 2260 | C42: 7.71 | E42: 8.69 | F42: 103347.0923 | G42: 9.68 | H42: 110338.9115
B43: 2560 | C43: 8.81 | E43: 9.94 | F43: 111351.1951 | G43: 11.06 | H43: 118813.8439
B44: 2860 | C44: 9.91 | D44: 111190.7652 | E44: 11.18 | F44: 119331.7564 | G44: 12.44 | H44: 127265.2348
B45: 3160 | C45: 11.02 | E45: 12.42 | F45: 127371.1715 | G45: 13.82 | H45: 135740.1672
B46: 3460 | C46: 12.12 | D46: 127029.82 | E46: 13.66 | F46: 135339.9621 | G46: 15.21 | H46: 144203.3289
B47: 3760 | C47: 13.22 | D47: 134551.3225 | E47: 14.9 | F47: 143320.5234 | G47: 16.59 | H47: 152678.2613
B48: 4060 | C48: 14.32 | D48: 142072.825 | E48: 16.15 | F48: 151324.6262 | G48: 17.97 | H48: 161141.4229
B49: 4360 | C49: 15.42 | D49: 149594.3275 | E49: 17.39 | F49: 159305.1876 | G49: 19.35 | H49: 165178.7865
B50: 4660 | C50: 16.52 | D50: 157115.83 | E50: 18.63 | F50: 164966.9132 | G50: 20.74 | H50: 166909.0852
B51: 4960 | C51: 17.63 | D51: 164637.3325 | E51: 19.87 | F51: 167309.2904 | G51: 22.12 | H51: 170593.3267
B52: 5260 | C52: 18.73 | D52: 172158.835 | E52: 21.11 | F52: 170428.5363 | G52: 23.5 | H52: 175513.4958
B53: 5560 | C53: 19.83 | D53: 179680.3375 | E53: 22.36 | F53: 172170.6058 | G53: 24.88 | H53: 183129.1642
A54: 2260 | B54: 2260 | C54: 9 | D54: 105042.0787 | E54: 10.14 | F54: 111916.1906 | G54: 11.29 | H54: 114776.4803
B55: 2560 | C55: 10.28 | D55: 113152.1182 | E55: 11.59 | F55: 120497.0596 | G55: 12.9 | H55: 128430.538
B56: 2860 | C56: 11.57 | D56: 121262.1577 | E56: 13.04 | F56: 129077.9287 | G56: 14.52 | H56: 137494.0074
B57: 3160 | C57: 12.85 | D57: 129372.1972 | E57: 14.49 | F57: 137658.7977 | G57: 16.13 | H57: 146545.706
B58: 3460 | C58: 14.14 | D58: 137458.6952 | E58: 15.94 | F58: 146251.4375 | G58: 17.74 | H58: 155597.4046
B59: 3760 | C59: 15.42 | D59: 145568.7346 | E59: 17.39 | F59: 153478.6715 | G59: 19.35 | H59: 159222.7924
B60: 4060 | C60: 16.71 | D60: 153678.7741 | E60: 18.84 | F60: 159340.4998 | G60: 20.97 | H60: 160388.0956
B61: 4360 | C61: 17.99 | D61: 161788.8136 | E61: 20.29 | F61: 162518.5994 | G61: 22.58 | H61: 164472.5422
B62: 4660 | C62: 19.28 | D62: 164437.23 | E62: 21.73 | F62: 164755.0399 | G62: 24.19 | H62: 172617.8939
B63: 4960 | C63: 20.56 | D63: 167497.6222 | E63: 23.18 | F63: 170228.4338 | G63: 25.8 | H63: 180763.2456
B64: 5260 | C64: 21.85 | D64: 169651.6675 | E64: 24.63 | F64: 177950.0388 | G64: 27.42 | H64: 188908.5972
B65: 5560 | C65: 23.13 | D65: 174795.4807 | E65: 26.08 | F65: 185659.8732 | G65: 29.03 | H65: 197065.7197
A66: 2560 | B66: 2560 | C66: 11.75 | E66: 13.25 | F66: 124251.9255 | G66: 14.75 | H66: 131314.3692
B67: 2860 | C67: 13.22 | D67: 130525.7296 | E67: 14.9 | F67: 138824.1009 | G67: 16.59 | H67: 147711.0092
B68: 3160 | C68: 14.69 | D68: 139224.3061 | E68: 16.56 | F68: 147993.507 | G68: 18.43 | H68: 153290.3397
B69: 3460 | C69: 16.16 | D69: 147911.1118 | E69: 18.22 | F69: 157162.913 | G69: 20.28 | H69: 155703.3413
B70: 3760 | C70: 17.63 | D70: 156597.9175 | E70: 19.87 | F70: 163613.2782 | G70: 22.12 | H70: 158952.0654
B71: 4060 | C71: 19.09 | D71: 159199.2509 | E71: 21.53 | F71: 166061.592 | G71: 23.96 | H71: 167638.8711
B72: 4360 | C72: 20.56 | D72: 164413.6885 | E72: 23.18 | F72: 168898.3402 | G72: 25.8 | H72: 176302.1353
B73: 4660 | C73: 22.03 | D73: 166532.4216 | E73: 24.84 | F73: 174430.5877 | G73: 27.65 | H73: 184977.1703
B74: 4960 | C74: 23.5 | D74: 172217.6887 | E74: 26.5 | F74: 182681.8761 | G74: 29.49 | H74: 193640.4345
B75: 5260 | C75: 24.97 | D75: 180045.2304 | E75: 28.15 | F75: 190933.1644 | G75: 31.33 | H75: 202315.4695
B76: 5560 | C76: 26.44 | D76: 187872.7722 | E76: 29.81 | F76: 199172.682 | G76: 33.18 | H76: 210990.5044
A77: 2860 | B77: 2860 | C77: 14.87 | D77: 150417.1022 | E77: 16.767 | F77: 159194.5426 | G77: 18.6624 | H77: 168542.8639
B78: 3160 | C78: 16.52 | D78: 160805.9568 | E78: 18.63 | F78: 170055.4039 | G78: 20.736 | H78: 161888.8649
B79: 3460 | C79: 18.18 | D79: 171194.8115 | E79: 20.493 | F79: 162824.6387 | G79: 22.8096 | H79: 172088.2106
B80: 3760 | C80: 19.83 | D80: 181583.6661 | E80: 22.356 | F80: 172600.2378 | G80: 24.8832 | H80: 182288.7334
B81: 4060 | C81: 21.48 | D81: 172774.4447 | E81: 24.219 | F81: 182374.6598 | G81: 26.9568 | H81: 192488.0791
B82: 4360 | C82: 23.13 | D82: 182123.943 | E82: 26.082 | F82: 192149.0818 | G82: 29.0304 | H82: 202688.6019
B83: 4660 | C83: 24.79 | D83: 191474.6184 | E83: 27.945 | F83: 201924.6809 | G83: 31.104 | H83: 212887.9476
B84: 4960 | C84: 26.44 | D84: 200824.1168 | E84: 29.808 | F84: 211699.1029 | G84: 33.1776 | H84: 223088.4704
B85: 5260 | C85: 28.09 | D85: 210173.6151 | E85: 31.671 | F85: 221473.525 | G85: 35.2512 | H85: 233287.8162
B86: 5560 | C86: 29.74 | D86: 219523.1135 | E86: 33.534 | F86: 231249.1241 | G86: 37.3248 | H86: 243488.3389
A87: 3160 | B87: 3160 | C87: 18.36 | D87: 171895.1705 | E87: 20.7 | F87: 163479.0918 | G87: 23.04 | H87: 172719.1222
B88: 3460 | C88: 20.2 | D88: 164686.7696 | E88: 22.77 | F88: 173860.8839 | G88: 25.344 | H88: 183550.5567
B89: 3760 | C89: 22.03 | D89: 174667.1796 | E89: 24.84 | F89: 184267.3947 | G89: 27.648 | H89: 194380.814
B90: 4060 | C90: 23.87 | D90: 184647.5896 | E90: 26.91 | F90: 194672.7283 | G90: 29.952 | H90: 205212.2484
B91: 4360 | C91: 25.7 | D91: 194627.9995 | E91: 28.98 | F91: 205078.062 | G91: 32.256 | H91: 216042.5058
B92: 4660 | C92: 27.54 | D92: 204609.5866 | E92: 31.05 | F92: 215484.5728 | G92: 34.56 | H92: 226873.9402
B93: 4960 | C93: 29.38 | D93: 214589.9966 | E93: 33.12 | F93: 225889.9064 | G93: 36.864 | H93: 237704.1976
B94: 5260 | C94: 31.21 | D94: 224570.4065 | E94: 35.19 | F94: 236295.2401 | G94: 39.168 | H94: 248534.4549
B95: 5560 | C95: 33.05 | D95: 234550.8165 | E95: 37.26 | F95: 246701.7508 | G95: 41.472 | H95: 259365.8894
A96: 3460 | B96: 3460 | C96: 22.2156 | D96: 175298.0912 | E96: 25.047 | F96: 184898.3063 | G96: 27.8784 | H96: 195011.7256
B97: 3760 | C97: 24.2352 | D97: 185909.4128 | E97: 27.324 | F97: 195934.5516 | G97: 30.4128 | H97: 206474.0717
B98: 4060 | C98: 26.2548 | D98: 196520.7344 | E98: 29.601 | F98: 206970.7969 | G98: 32.9472 | H98: 217935.2407
B99: 4360 | C99: 28.2744 | D99: 207132.056 | E99: 31.878 | F99: 218008.2193 | G99: 35.4816 | H99: 229396.4097
B100: 4660 | C100: 30.294 | D100: 217744.5547 | E100: 34.155 | F100: 229044.4646 | G100: 38.016 | H100: 240858.7558
B101: 4960 | C101: 32.3136 | D101: 228355.8763 | E101: 36.432 | F101: 240080.7099 | G101: 40.5504 | H101: 252319.9247
B102: 5260 | C102: 34.3332 | D102: 238967.1979 | E102: 38.709 | F102: 251116.9552 | G102: 43.0848 | H102: 263782.2708
B103: 5560 | C103: 36.3528 | D103: 249578.5195 | E103: 40.986 | F103: 262154.3776 | G103: 45.6192 | H103: 275243.4398
A104: 3760 | B104: 3760 | C104: 26.4384 | D104: 197151.6461 | E104: 29.808 | F104: 207601.7085 | G104: 33.1776 | H104: 218566.1523
B105: 4060 | C105: 28.6416 | D105: 208393.8793 | E105: 32.292 | F105: 219270.0426 | G105: 35.9424 | H105: 230658.233
B106: 4360 | C106: 30.8448 | D106: 219637.2896 | E106: 34.776 | F106: 230937.1995 | G106: 38.7072 | H106: 242751.4907
B107: 4660 | C107: 33.048 | D107: 230879.5229 | E107: 37.26 | F107: 242604.3564 | G107: 41.472 | H107: 254843.5713
B108: 4960 | C108: 35.2512 | D108: 242121.7561 | E108: 39.744 | F108: 254271.5133 | G108: 44.2368 | H108: 266936.829
B109: 5260 | C109: 37.4544 | D109: 253363.9893 | E109: 42.228 | F109: 265939.8474 | G109: 47.0016 | H109: 279028.9096
B110: 5560 | C110: 39.6576 | D110: 264606.2226 | E110: 44.712 | F110: 277607.0043 | G110: 49.7664 | H110: 291120.9902
A111: 4060 | B111: 4060 | C111: 31.0284 | D111: 220268.2013 | E111: 34.983 | F111: 231568.1111 | G111: 38.9376 | H111: 243382.4023
B112: 4360 | C112: 33.4152 | D112: 232141.3461 | E112: 37.674 | F112: 243866.1797 | G112: 41.9328 | H112: 256105.3946
B113: 4660 | C113: 35.802 | D113: 244014.491 | E113: 40.365 | F113: 256164.2483 | G113: 44.928 | H113: 268829.5639
B114: 4960 | C114: 38.1888 | D114: 256476.1728 | E114: 43.056 | F114: 268462.3168 | G114: 47.9232 | H114: 281552.5561
B115: 5260 | C115: 40.5756 | D115: 267760.7807 | E115: 45.747 | F115: 280526.1477 | G115: 50.9184 | H115: 294275.5484
B116: 5560 | C116: 42.9624 | D116: 279633.9256 | E116: 48.438 | F116: 293059.631 | G116: 53.9136 | H116: 306999.7177
A117: 4360 | B117: 4360 | C117: 35.9856 | D117: 244763.11 | E117: 40.572 | F117: 256795.1599 | G117: 45.1584 | H117: 269460.4755
B118: 4660 | C118: 38.556 | D118: 257149.4591 | E118: 43.47 | F118: 269724.1401 | G118: 48.384 | H118: 282814.3794
B119: 4960 | C119: 41.1264 | D119: 269653.5156 | E119: 46.368 | F119: 282654.2974 | G119: 51.6096 | H119: 296168.2833
B120: 5260 | C120: 43.6968 | D120: 282157.5722 | E120: 49.266 | F120: 295583.2776 | G120: 54.8352 | H120: 309523.3643
B121: 5560 | C121: 46.2672 | D121: 294661.6287 | E121: 52.164 | F121: 308512.2578 | G121: 58.0608 | H121: 322877.2682
A122: 4660 | B122: 4660 | C122: 41.31 | D122: 270284.4273 | E122: 46.575 | F122: 283285.209 | G122: 51.84 | H122: 296799.1949
B123: 4960 | C123: 44.064 | D123: 283419.3954 | E123: 49.68 | F123: 296845.1008 | G123: 55.296 | H123: 310785.1875
B124: 5260 | C124: 46.818 | D124: 296554.3636 | E124: 52.785 | F124: 310404.9927 | G124: 58.752 | H124: 324770.0031
B125: 5560 | C125: 49.572 | D125: 309689.3317 | E125: 55.89 | F125: 323964.8845 | G125: 62.208 | H125: 338754.8186
A126: 4960 | B126: 4960 | C126: 47.0016 | D126: 297185.2752 | E126: 52.992 | F126: 311035.9043 | G126: 58.9824 | H126: 325400.9147
B127: 5260 | C127: 49.9392 | D127: 310951.155 | E127: 56.304 | F127: 325226.7078 | G127: 62.6688 | H127: 340016.6419
B128: 5560 | C128: 52.8768 | D128: 324717.0347 | E128: 59.616 | F128: 339417.5112 | G128: 66.3552 | H128: 354632.369
A129: 5260 | B129: 5260 | C129: 53.0604 | D129: 325347.9464 | E129: 59.823 | F129: 340048.4229 | G129: 66.5856 | H129: 355263.2807
B130: 5560 | C130: 56.1816 | D130: 339744.7378 | E130: 63.342 | F130: 354870.138 | G130: 70.5024 | H130: 370511.0965
A131: 5560 | B131: 5560 | C131: 59.47 | D131: 354772.4408 | E131: 67.07 | F131: 370323.9418 | G131: 74.65 | H131: 386388.647
A132: Цены на оборудование ТМ «POLAIR», указанные в настоящем прайс-листе являются рекомендованными и могут отличаться от розничных цен у наших дилеров и региональных представителей.

Sheet Камеры-Professionale 100
I2: 2020-03-30
A4: Сборно-разборные холодильные камеры из сендвич-панелей с соединением ШИП-ПАЗ из жесткого ПВХ
I7: толщина панели 100 мм
A8: ПРАЙС-ЛИСТ - КАМЕРЫ POLAIR Professionale (100мм) ИЗ СТАНДАРТНЫХ ПАНЕЛЕЙ
A10: Базовые цены с учетом НДС
A11: Внешние габариты | C11: Высота 2 240 мм | F11: Высота 2 500 мм | I11: Высота 2 760 мм
A12: Длина | B12: Ширина | C12: объём, м3 | D12: Цена, Руб. | E12: Цена, Руб | F12: объём, м3 | G12: Цена, Руб. | H12: Цена, Руб | I12: объём, м3 | J12: Цена, Руб.
A13: 1400 | B13: 1400 | C13: 2.94 | D13: 70859.85142 | E13: 0 | F13: 3.31 | G13: 75709.39607 | H13: 0 | I13: 3.69 | J13: 81442.2
B14: 1700 | C14: 3.67 | D14: 78534.37353 | E14: 0 | F14: 4.14 | G14: 83925.3722 | H14: 0 | I14: 4.61 | J14: 90176.1
B15: 2000 | C15: 4.41 | D15: 86220.66639 | E15: 0 | F15: 4.97 | G15: 92129.57758 | H15: 0 | I15: 5.53 | J15: 95966.85
B16: 2300 | C16: 5.14 | D16: 93895.1885 | E16: 0 | F16: 5.8 | G16: 100333.783 | H16: 0 | I16: 6.45 | J16: 103559.4
B17: 2600 | C17: 5.88 | D17: 98497.54762 | E17: 0 | F17: 6.62 | G17: 104865.5177 | H17: 0 | I17: 7.37 | J17: 111150.9
B18: 2900 | C18: 6.61 | D18: 109267.7742 | E18: 0 | F18: 7.45 | G18: 116753.9645 | H18: 0 | I18: 8.29 | J18: 125111.7
B19: 3200 | C19: 7.34 | D19: 116942.2963 | E19: 0 | F19: 8.28 | G19: 124958.1699 | H19: 0 | I19: 9.22 | J19: 133845.6
B20: 3500 | C20: 8.08 | D20: 124628.5892 | E20: 0 | F20: 9.11 | G20: 133174.146 | H20: 0 | I20: 10.14 | J20: 142591.05
B21: 3800 | C21: 8.81 | D21: 132314.882 | E21: 0 | F21: 9.94 | G21: 141378.3514 | H21: 0 | I21: 11.06 | J21: 151324.95
B22: 4100 | C22: 9.55 | D22: 139989.4041 | E22: 0 | F22: 10.76 | G22: 149582.5568 | H22: 0 | I22: 11.98 | J22: 160046.25
B23: 4400 | C23: 10.28 | D23: 147675.697 | E23: 0 | F23: 11.59 | G23: 157798.5329 | H23: 0 | I23: 12.9 | J23: 168780.15
B24: 4700 | C24: 11.02 | D24: 155361.9898 | E24: 0 | F24: 12.42 | G24: 166002.7383 | H24: 0 | I24: 13.82 | J24: 177526.65
B25: 5000 | C25: 11.75 | D25: 163036.512 | E25: 0 | F25: 13.25 | G25: 174206.9437 | H25: 0 | I25: 14.75 | J25: 186260.55
B26: 5300 | C26: 12.48 | D26: 170722.8048 | E26: 0 | F26: 14.08 | G26: 182422.9198 | H26: 0 | I26: 15.67 | J26: 194994.45
B27: 5600 | C27: 13.22 | D27: 178409.0977 | E27: 0 | F27: 14.9 | G27: 190627.1252 | H27: 0 | I27: 16.59 | J27: 197689.8
A28: 1700 | B28: 1700 | C28: 4.59 | D28: 86985.76445 | E28: 0 | F28: 5.17 | G28: 92894.67565 | H28: 0 | I28: 5.76 | J28: 96437.25
B29: 2000 | C29: 5.51 | D29: 95425.38463 | E29: 0 | F29: 6.21 | G29: 98815.35759 | H29: 0 | I29: 6.91 | J29: 104618.85
B30: 2300 | C30: 6.43 | D30: 100121.9097 | E30: 0 | F30: 7.25 | G30: 106489.8797 | H30: 0 | I30: 8.06 | J30: 112775.25
B31: 2600 | C31: 7.34 | D31: 107313.8315 | E31: 0 | F31: 8.28 | G31: 114176.1726 | H31: 0 | I31: 9.22 | J31: 120932.7
B32: 2900 | C32: 8.26 | D32: 120756.0159 | E32: 0 | F32: 9.31 | G32: 128771.8895 | H32: 0 | I32: 10.37 | J32: 137659.2
B33: 3200 | C33: 9.18 | D33: 129195.6361 | E33: 0 | F33: 10.35 | G33: 137741.1929 | H33: 0 | I33: 11.52 | J33: 147157.5
B34: 3500 | C34: 10.1 | D34: 137647.027 | E34: 0 | F34: 11.39 | G34: 146710.4964 | H34: 0 | I34: 12.67 | J34: 156645.3
B35: 3800 | C35: 11.02 | D35: 146086.6472 | E35: 0 | F35: 12.42 | G35: 155679.7998 | H35: 0 | I35: 13.82 | J35: 166143.6
B36: 4100 | C36: 11.93 | D36: 154526.2673 | E36: 0 | F36: 13.46 | G36: 164649.1033 | H36: 0 | I36: 14.98 | J36: 175642.95
B37: 4400 | C37: 12.85 | D37: 162977.6583 | E37: 0 | F37: 14.49 | G37: 173618.4067 | H37: 0 | I37: 16.13 | J37: 185142.3
B38: 4700 | C38: 13.77 | D38: 171417.2784 | E38: 0 | F38: 15.53 | G38: 182587.7102 | H38: 0 | I38: 17.28 | J38: 188743.8
B39: 5000 | C39: 14.69 | D39: 179868.6694 | E39: 0 | F39: 16.56 | G39: 191557.0136 | H39: 0 | I39: 18.43 | J39: 197572.2
B40: 5300 | C40: 15.61 | D40: 188308.2895 | E40: 0 | F40: 17.59 | G40: 200526.3171 | H40: 0 | I40: 19.58 | J40: 206423.7
B41: 5600 | C41: 16.52 | D41: 196747.9097 | E41: 0 | F41: 18.63 | G41: 209495.6205 | H41: 0 | I41: 20.74 | J41: 215251.05
A42: 2000 | B42: 2000 | C42: 6.61 | D42: 100592.7392 | E42: 0 | F42: 7.45 | G42: 106984.2508 | H42: 0 | I42: 8.29 | J42: 113269.8
B43: 2300 | C43: 7.71 | D43: 108349.6565 | E43: 0 | F43: 8.69 | G43: 115223.7684 | H43: 0 | I43: 9.68 | J43: 121992.15
B44: 2600 | C44: 8.81 | D44: 116106.5738 | E44: 0 | F44: 9.94 | G44: 123463.286 | H44: 0 | I44: 11.06 | J44: 130714.5
B45: 2900 | C45: 9.91 | D45: 132244.2576 | E45: 0 | F45: 11.18 | G45: 140789.8144 | H45: 0 | I45: 12.44 | J45: 150206.7
B46: 3200 | C46: 11.02 | D46: 141448.9758 | E46: 0 | F46: 12.42 | G46: 150524.2159 | H46: 0 | I46: 13.82 | J46: 160458.9
B47: 3500 | C47: 12.12 | D47: 150653.6941 | E47: 0 | F47: 13.66 | G47: 160246.8467 | H47: 0 | I47: 15.21 | J47: 170722.65
B48: 3800 | C48: 13.22 | D48: 159858.4123 | E48: 0 | F48: 14.9 | G48: 169981.2482 | H48: 0 | I48: 16.59 | J48: 180974.85
B49: 4100 | C49: 14.32 | D49: 169074.9013 | E49: 0 | F49: 16.15 | G49: 179715.6497 | H49: 0 | I49: 17.97 | J49: 185235.75
B50: 4400 | C50: 15.42 | D50: 178279.6195 | E50: 0 | F50: 17.39 | G50: 189450.0513 | H50: 0 | I50: 19.35 | J50: 194746.65
B51: 4700 | C51: 16.52 | D51: 187484.3378 | E51: 0 | F51: 18.63 | G51: 199172.682 | H51: 0 | I51: 20.74 | J51: 204257.55
B52: 5000 | C52: 17.63 | D52: 196689.056 | E52: 0 | F52: 19.87 | G52: 202621.5087 | H52: 0 | I52: 22.12 | J52: 213791.55
B53: 5300 | C53: 18.73 | D53: 205893.7743 | E53: 0 | F53: 21.11 | G53: 211661.4366 | H53: 0 | I53: 23.5 | J53: 223302.45
B54: 5600 | C54: 19.83 | D54: 208459.7955 | E54: 0 | F54: 22.36 | G54: 220689.5937 | H54: 0 | I54: 24.88 | J54: 232824.9
A55: 2300 | B55: 2300 | C55: 9 | D55: 117036.4622 | E55: 0 | F55: 10.14 | G55: 124393.1744 | H55: 0 | I55: 11.29 | J55: 131643.75
B56: 2600 | C56: 10.28 | D56: 125417.2287 | E56: 0 | F56: 11.59 | G56: 133244.7704 | H56: 0 | I56: 12.9 | J56: 141013.95
B57: 2900 | C57: 11.57 | D57: 143732.4993 | E57: 0 | F57: 13.04 | G57: 152807.7394 | H57: 0 | I57: 14.52 | J57: 162742.65
B58: 3200 | C58: 12.85 | D58: 153702.3156 | E58: 0 | F58: 14.49 | G58: 163295.4682 | H58: 0 | I58: 16.13 | J58: 173759.25
B59: 3500 | C59: 14.14 | D59: 163672.1319 | E59: 0 | F59: 15.94 | G59: 173794.9678 | H59: 0 | I59: 17.74 | J59: 184788.45
B60: 3800 | C60: 15.42 | D60: 173641.9482 | E60: 0 | F60: 17.39 | G60: 184282.6966 | H60: 0 | I60: 19.35 | J60: 190074.15
B61: 4100 | C61: 16.71 | D61: 183611.7645 | E61: 0 | F61: 18.84 | G61: 194782.1962 | H61: 0 | I61: 20.97 | J61: 200349.45
B62: 4400 | C62: 17.99 | D62: 193569.8101 | E62: 0 | F62: 20.29 | G62: 205269.9251 | H62: 0 | I62: 22.58 | J62: 210601.65
B63: 4700 | C63: 19.28 | D63: 203539.6264 | E63: 0 | F63: 21.73 | G63: 215769.4246 | H63: 0 | I63: 24.19 | J63: 220866.45
B64: 5000 | C64: 20.56 | D64: 213509.4427 | E64: 0 | F64: 23.18 | G64: 219488.9783 | H64: 0 | I64: 25.8 | J64: 231141.75
B65: 5300 | C65: 21.85 | D65: 223479.259 | E65: 0 | F65: 24.63 | G65: 229258.692 | H65: 0 | I65: 27.42 | J65: 241393.95
B66: 5600 | C66: 23.13 | D66: 226327.7779 | E66: 0 | F66: 26.08 | G66: 239040.1765 | H66: 0 | I66: 29.03 | J66: 251670.3
A67: 2600 | B67: 2600 | C67: 11.75 | D67: 134221.7418 | E67: 0 | F67: 13.25 | G67: 142555.4253 | H67: 0 | I67: 14.75 | J67: 150771.6
B68: 2900 | C68: 13.22 | D68: 155232.5117 | E68: 0 | F68: 14.9 | G68: 164825.6644 | H68: 0 | I68: 16.59 | J68: 175290.15
B69: 3200 | C69: 14.69 | D69: 165955.6553 | E69: 0 | F69: 16.56 | G69: 176078.4913 | H69: 0 | I69: 18.43 | J69: 187072.2
B70: 3500 | C70: 16.16 | D70: 176690.5697 | E70: 0 | F70: 18.22 | G70: 187331.3182 | H70: 0 | I70: 20.28 | J70: 192627.75
B71: 3800 | C71: 17.63 | D71: 187413.7133 | E71: 0 | F71: 19.87 | G71: 198584.1451 | H71: 0 | I71: 22.12 | J71: 203575.05
B72: 4100 | C72: 19.09 | D72: 198148.6277 | E72: 0 | F72: 21.53 | G72: 209836.972 | H72: 0 | I72: 23.96 | J72: 214509.75
B73: 4400 | C73: 20.56 | D73: 208871.7713 | E73: 0 | F73: 23.18 | G73: 214298.0822 | H73: 0 | I73: 25.8 | J73: 225444.45
B74: 4700 | C74: 22.03 | D74: 213015.0716 | E74: 0 | F74: 24.84 | G74: 224750.4988 | H74: 0 | I74: 27.65 | J74: 236391.75
B75: 5000 | C75: 23.5 | D75: 222973.1172 | E75: 0 | F75: 26.5 | G75: 235202.9155 | H75: 0 | I75: 29.49 | J75: 247339.05
B76: 5300 | C76: 24.97 | D76: 232954.7042 | E76: 0 | F76: 28.15 | G76: 245667.1028 | H76: 0 | I76: 31.33 | J76: 258285.3
B77: 5600 | C77: 26.44 | D77: 242912.7498 | E77: 0 | F77: 29.81 | G77: 256119.5194 | H77: 0 | I77: 33.18 | J77: 269220
A78: 2900 | B78: 2900 | C78: =(B78/1000-0.2)*2.04*2.7 -> 14.8716 | D78: 166719.5763 | E78: 16.767 | F78: 16.767 | G78: 176838.881 | H78: 170745.25 | I78: 18.6624 | J78: 187831.35
B79: 3200 | C79: =(B79/1000-0.2)*2.04*2.7 -> 16.524 | D79: 178211.3492 | E79: 18.63 | F79: 18.63 | G79: 188855.6289 | H79: 182147.17 | I79: 20.736 | J79: 200374.65
B80: 3500 | C80: 18.1764 | D80: 189701.9451 | E80: 20.493 | F80: 20.493 | G80: 200872.3768 | H80: 193549.09 | I80: 22.8096 | J80: 212916.9
B81: 3800 | C81: 19.8288 | D81: 201192.5409 | E81: 22.356 | F81: 22.356 | G81: 212774.9485 | H81: 204951.01 | I81: 24.8832 | J81: 225460.2
B82: 4100 | C82: 21.4812 | D82: 212683.1368 | E82: 24.219 | F82: 24.219 | G82: 224905.8726 | H82: 216352.93 | I82: 26.9568 | J82: 238003.5
B83: 4400 | C83: 23.1336 | D83: 224174.9097 | E83: 26.082 | F83: 26.082 | G83: 236808.4443 | H83: 227754.85 | I83: 29.0304 | J83: 250545.75
B84: 4700 | C84: 24.786 | D84: 235665.5055 | E84: 27.945 | F84: 27.945 | G84: 248939.3684 | H84: 239156.77 | I84: 31.104 | J84: 263089.05
B85: 5000 | C85: 26.4384 | D85: 247156.1014 | E85: 29.808 | F85: 29.808 | G85: 260957.2933 | H85: 250558.69 | I85: 33.1776 | J85: 275632.35
B86: 5300 | C86: 28.0908 | D86: 258646.6972 | E86: 31.671 | F86: 31.671 | G86: 272974.0412 | H86: 261960.61 | I86: 35.2512 | J86: 288174.6
B87: 5600 | C87: 29.7432 | D87: 270138.4701 | E87: 33.534 | F87: 33.534 | G87: 284990.7891 | H87: 273362.53 | I87: 37.3248 | J87: 300717.9
A88: 3200 | B88: 3200 | C88: =(B88/1000-0.2)*2.04*3 -> 18.36 | D88: 198703.0295 | E88: 20.7 | F88: 20.7 | G88: 201633.9437 | H88: 194241.38 | I88: 23.04 | J88: 213679.2
B89: 3500 | C89: =(B89/1000-0.2)*2.04*3 -> 20.196 | D89: 202715.6746 | E89: 22.77 | F89: 22.77 | G89: 214412.2584 | H89: 206336.66 | I89: 25.344 | J89: 226984.8
B90: 3800 | C90: 22.032 | D90: 214969.0144 | E90: 24.84 | F90: 24.84 | G90: 227191.7502 | H90: 218430.87 | I90: 27.648 | J90: 240289.35
B91: 4100 | C91: 23.868 | D91: 227221.177 | E91: 26.91 | F91: 26.91 | G91: 239970.0649 | H91: 230525.08 | I91: 29.952 | J91: 253593.9
B92: 4400 | C92: 25.704 | D92: 239474.5168 | E92: 28.98 | F92: 28.98 | G92: 252748.3797 | H92: 242619.29 | I92: 32.256 | J92: 266898.45
B93: 4700 | C93: 27.54 | D93: 251726.6795 | E93: 31.05 | F93: 31.05 | G93: 265527.8715 | H93: 254713.5 | I93: 34.56 | J93: 280201.95
B94: 5000 | C94: 29.376 | D94: 263980.0192 | E94: 33.12 | F94: 33.12 | G94: 278306.1862 | H94: 266808.78 | I94: 36.864 | J94: 293508.6
B95: 5300 | C95: 31.212 | D95: 276232.1819 | E95: 35.19 | F95: 35.19 | G95: 291084.5009 | H95: 278902.99 | I95: 39.168 | J95: 306812.1
B96: 5600 | C96: 33.048 | D96: 288485.5217 | E96: 37.26 | F96: 37.26 | G96: 303863.9928 | H96: 290997.2 | I96: 41.472 | J96: 320116.65
A97: 3500 | B97: 3500 | C97: =(B97/1000-0.2)*2.04*3.3 -> 22.2156 | D97: 215730.5812 | E97: 25.047 | F97: 25.047 | G97: 227953.317 | H97: 219123.16 | I97: 27.8784 | J97: 241050.6
B98: 3800 | C98: =(B98/1000-0.2)*2.04*3.3 -> 24.2352 | D98: 228745.4878 | E98: 27.324 | F98: 27.324 | G98: 241493.1986 | H98: 231909.66 | I98: 30.4128 | J98: 255116.4
B99: 4100 | C99: 26.2548 | D99: 241759.2173 | E99: 29.601 | F99: 29.601 | G99: 255034.2573 | H99: 244697.23 | I99: 32.9472 | J99: 269184.3
B100: 4400 | C100: 28.2744 | D100: 254774.1239 | E100: 31.878 | F100: 31.878 | G100: 268574.1388 | H100: 257483.73 | I100: 35.4816 | J100: 283250.1
B101: 4700 | C101: 30.294 | D101: 267789.0305 | E101: 34.155 | F101: 34.155 | G101: 282115.1975 | H101: 270271.3 | I101: 38.016 | J101: 297316.95
B102: 5000 | C102: 32.3136 | D102: 280802.76 | E102: 36.432 | F102: 36.432 | G102: 295655.0791 | H102: 283057.8 | I102: 40.5504 | J102: 311382.75
B103: 5300 | C103: 34.3332 | D103: 293817.6666 | E103: 38.709 | F103: 38.709 | G103: 309196.1377 | H103: 295844.3 | I103: 43.0848 | J103: 325449.6
B104: 5600 | C104: 36.3528 | D104: 306832.5732 | E104: 40.986 | F104: 40.986 | G104: 322736.0193 | H104: 308631.87 | I104: 45.6192 | J104: 339516.45
A105: 3800 | B105: 3800 | C105: =(B105/1000-0.2)*2.04*3.6 -> 26.4384 | D105: 242521.9612 | E105: 29.808 | F105: 29.808 | G105: 255795.8241 | H105: 245389.52 | I105: 33.1776 | J105: 269945.55
B106: 4100 | C106: =(B106/1000-0.2)*2.04*3.6 -> 28.6416 | D106: 256297.2576 | E106: 32.292 | F106: 32.292 | G106: 270098.4496 | H106: 258869.38 | I106: 35.9424 | J106: 284774.7
B107: 4400 | C107: 30.8448 | D107: 270073.731 | E107: 34.776 | F107: 34.776 | G107: 284399.898 | H107: 272348.17 | I107: 38.7072 | J107: 299601.75
B108: 4700 | C108: 33.048 | D108: 283850.2045 | E108: 37.26 | F108: 37.26 | G108: 298702.5235 | H108: 285828.03 | I108: 41.472 | J108: 314430.9
B109: 5000 | C109: 35.2512 | D109: 297626.6779 | E109: 39.744 | F109: 39.744 | G109: 313005.149 | H109: 299306.82 | I109: 44.2368 | J109: 329257.95
B110: 5300 | C110: 37.4544 | D110: 311403.1514 | E110: 42.228 | F110: 42.228 | G110: 327306.5974 | H110: 312786.68 | I110: 47.0016 | J110: 344087.1
B111: 5600 | C111: 39.6576 | D111: 325178.4477 | E111: 44.712 | F111: 44.712 | G111: 341609.2229 | H111: 326265.47 | I111: 49.7664 | J111: 358914.15
A112: 4100 | B112: 4100 | C112: =(B112/1000-0.2)*2.04*3.9 -> 31.0284 | D112: 270835.2979 | E112: 34.983 | F112: 34.983 | G112: 285162.6419 | H112: 273040.46 | I112: 38.9376 | J112: 300363
B113: 4400 | C113: 33.4152 | D113: 285373.3382 | E113: 37.674 | F113: 37.674 | G113: 300225.6572 | H113: 287212.61 | I113: 41.9328 | J113: 315953.4
B114: 4700 | C114: 35.802 | D114: 299911.3784 | E114: 40.365 | F114: 40.365 | G114: 315289.8495 | H114: 301384.76 | I114: 44.928 | J114: 331543.8
B115: 5000 | C115: 38.1888 | D115: 314449.4187 | E115: 43.056 | F115: 43.056 | G115: 330354.0419 | H115: 315555.84 | I115: 47.9232 | J115: 347133.15
B116: 5300 | C116: 40.5756 | D116: 328987.459 | E116: 45.747 | F116: 45.747 | G116: 345418.2342 | H116: 328829.19 | I116: 50.9184 | J116: 361734.45
B117: 5600 | C117: 42.9624 | D117: 343525.4993 | E117: 48.438 | F117: 48.438 | G117: 360482.4265 | H117: 343900.14 | I117: 53.9136 | J117: 378313.95
A118: 4400 | B118: 4400 | C118: =(B118/1000-0.2)*2.04*4.2 -> 35.9856 | D118: 300672.9453 | E118: 40.572 | F118: 40.572 | G118: 316052.5934 | H118: 302077.05 | I118: 45.1584 | J118: 332306.1
B119: 4700 | C119: =(B119/1000-0.2)*2.04*4.2 -> 38.556 | D119: 315973.7295 | E119: 43.47 | F119: 43.47 | G119: 331878.3526 | H119: 316941.49 | I119: 48.384 | J119: 348657.75
B120: 5000 | C120: =(B120/1000-0.2)*2.04*4.2 -> 41.1264 | D120: 331273.3366 | E120: 46.368 | F120: 46.368 | G120: 347704.1118 | H120: 331805.93 | I120: 51.6096 | J120: 365009.4
B121: 5300 | C121: =(B121/1000-0.2)*2.04*4.2 -> 43.6968 | D121: 346572.9437 | E121: 49.266 | F121: 49.266 | G121: 363529.871 | H121: 346670.37 | I121: 54.8352 | J121: 381361.05
B122: 5600 | C122: =(B122/1000-0.2)*2.04*4.2 -> 46.2672 | D122: 361872.5509 | E122: 52.164 | F122: 52.164 | G122: 379355.6301 | H122: 361534.81 | I122: 58.0608 | J122: 397713.75
A123: 4700 | B123: 4700 | C123: =(B123/1000-0.2)*2.04*4.5 -> 41.31 | D123: 332034.9034 | E123: 46.575 | F123: 46.575 | G123: 348465.6786 | H123: 332498.22 | I123: 51.84 | J123: 365770.65
B124: 5000 | C124: =(B124/1000-0.2)*2.04*4.5 -> 44.064 | D124: 348096.0774 | E124: 49.68 | F124: 49.68 | G124: 365053.0046 | H124: 348054.95 | I124: 55.296 | J124: 382884.6
B125: 5300 | C125: =(B125/1000-0.2)*2.04*4.5 -> 46.818 | D125: 364158.4284 | E125: 52.785 | F125: 52.785 | G125: 381640.3307 | H125: 363611.68 | I125: 58.752 | J125: 399997.5
B126: 5600 | C126: =(B126/1000-0.2)*2.04*4.5 -> 49.572 | D126: 380219.6024 | E126: 55.89 | F126: 55.89 | G126: 398227.6567 | H126: 379168.41 | I126: 62.208 | J126: 417111.45
A127: 5000 | B127: 5000 | C127: =(B127/1000-0.2)*2.04*4.8 -> 47.0016 | D127: 364919.9953 | E127: 52.992 | F127: 52.992 | G127: 382401.8975 | H127: 364271.87 | I127: 58.9824 | J127: 400724.1
B128: 5300 | C128: =(B128/1000-0.2)*2.04*4.8 -> 49.9392 | D128: 381742.7361 | E128: 56.304 | F128: 56.304 | G128: 399751.9674 | H128: 380552.99 | I128: 62.6688 | J128: 418635
B129: 5600 | C129: =(B129/1000-0.2)*2.04*4.8 -> 52.8768 | D129: 398566.654 | E129: 59.616 | F129: 59.616 | G129: 417100.8603 | H129: 396803.08 | I129: 66.3552 | J129: 436511.25
A130: 5300 | B130: 5300 | C130: =(B130/1000-0.2)*2.04*5.1 -> 53.0604 | D130: 399328.2208 | E130: 59.823 | F130: 59.823 | G130: 417862.4271 | H130: 397495.37 | I130: 66.5856 | J130: 437272.5
B131: 5600 | C131: =(B131/1000-0.2)*2.04*5.1 -> 56.1816 | D131: 416913.7055 | E131: 63.342 | F131: 63.342 | G131: 435974.0639 | H131: 414436.68 | I131: 70.5024 | J131: 455908.95
A132: 5600 | B132: 5600 | C132: =(B132/1000-0.2)*2.04*5.4 -> 59.4864 | D132: 435260.7571 | E132: 67.07 | F132: 67.07 | G132: 454847.2675 | H132: 431556.68 | I132: 74.65 | J132: 474741.75
A134: Цены на оборудование ТМ «POLAIR», указанные в настоящем прайс-листе являются рекомендованными и могут отличаться от розничных цен у наших дилеров и региональных представителей.

Sheet Наборы панелей
D4: 2020-03-30
A6: ПРАЙС-ЛИСТ - РАСШИРИТЕЛЬНЫЕ ПОЯСА (ППУ 80 мм) В УПАКОВКЕ
A8: Расширительные пояса (толщина панелей 80 мм) в упаковке
A9: Расширительный пояс состоит из 4-х панелей одинаковой ширины: потолочная, половая и 2 стеновых панели .
A10: Базовые цены с учётом НДС
A11: Ширина камеры, мм | B11: Ширина пояса, мм | C11: Набор панелей | E11: Цена расширительного пояса, Руб.
C12: потолочная и половая панели - по 1 шт. | D12: боковая панель - 2 шт.
B13: 1200 | C13: 1360х1200мм | D13: 2040х1200мм | E13: 31806.06104
B14: 900 | C14: 1360х900мм . | D14: 2040х900мм | E14: 23839.4079
A15: 1360 | B15: 600 | C15: 1360х600мм | D15: 2040х600мм | E15: 15623.66784
B16: 300 | C16: 1360х300мм | D16: 2040х300мм | E16: 7936.377381
B17: 1200 | C17: 1660х1200мм | D17: 2040х1200 | E17: 34707.02923
B18: 900 | C18: 1660х900мм | D18: 2040х900мм | E18: 26048.16214
A19: 1660 | B19: 600 | C19: 1660х600мм | D19: 2040х600мм | E19: 17360.39547
B20: 300 | C20: 1660х300мм | D20: 2040х300мм | E20: 8687.766674
B21: 1200 | C21: 1960х1200мм | D21: 2040х1200 | E21: 37636.897
B22: 900 | C22: 1960х900мм | D22: 2040х900мм | E22: 28228.01679
A23: 1960 | B23: 600 | C23: 1960х600мм | D23: 2040х600мм | E23: 18819.13659
B24: 300 | C24: 1960х300мм | D24: 2040х300мм | E24: 9408.880207
B25: 1200 | C25: 2260х1200мм | D25: 2040х1200 | E25: 40568.14094
B26: 900 | C26: 2260х900мм | D26: 2040х900мм | E26: 30023.91977
A27: 2260 | B27: 600 | C27: 2260х600мм | D27: 2040х600мм | E27: 20291.63941
B28: 300 | C28: 2260х300мм | D28: 2040х300мм | E28: 10145.13162
B29: 1200 | C29: 2560х1200мм | D29: 2040х1200 | E29: 43482.87084
B30: 900 | C30: 2560х900мм | D30: 2040х900мм | E30: 32616.62568
A31: 2560 | B31: 600 | C31: 2560х600мм | D31: 2040х600мм | E31: 21749.00436
B32: 300 | C32: 2560х300мм | D32: 2040х300мм | E32: 10867.62132
A35: ПРАЙС-ЛИСТ - СТОЙКИ
A36: Базовые цены с учётом НДС
A37: СТОЙКИ
A38: для панелей толщиной 80 мм | B38: Цена, Руб. | C38: для панелей толщиной 100 мм | D38: Цена, Руб.
A39: 1200х 80 x 80 мм | B39: 604.3728814 | C39: 1200х 100 x 100 мм | D39: 875.7
A40: 2040х 80 x 80 мм | B40: 1022.949153 | C40: 2040 х 100 x 100 мм | D40: 1451.135593
A41: 2300 х 80 x 80 мм | B41: 1130.79661 | C41: 2300 х 100 x 100 мм | D41: 1655.084746
A42: 2560 х 80 x 80 мм | B42: 1269.610169 | C42: 2560 х 100 x 100 мм | D42: 1828.067797
A44: Производитель оставляет за собой право частичного изменения технических характеристик оборудования без принципиальных изменений его эксплуатационных свойств

Sheet Дверные бл. универ-е и конт
D2: 2020-03-30
B5: ПРАЙС - ЛИСТ - ДВЕРНЫЕ БЛОКИ, ДВЕРИ
B7: Серийно выпускаются 3 основных типа дверей "Полаир" с толщиной полотна двери 80 мм: для светового проема 1850*800 -распашные, для светового проема 1200*1850 - контейнерные и откатные. Двери устанавливаются на камеры с толщиной панелей как 80мм так и 100 м
B9: Базовые цены с учетом НДС
B10: ДВЕРНЫЕ БЛОКИ УНИВЕРСАЛЬНЫЕ (распашная) световой проем 1850 x 800
B11: Комплектация: комплект ручки и петель, пороговая накладка, метизы
B12: 80 мм | C12: Цена, Руб. | D12: 100 мм | E12: Цена, Руб.
B13: 1200х2040 мм | C13: 31914.30508 | D13: 1200х2040 мм | E13: 32918.0339
B14: 1200х2300 мм | C14: 33418.83051 | D14: 1200х2300 мм | E14: 34909.47458
B15: 1200х2560 мм | C15: 35410.27119 | D15: 1200х2560 мм | E15: 38419.32203
B17: ДВЕРНЫЕ БЛОКИ КОНТЕЙНЕРНЫЕ (световой проем 1200 x1850)
B18: В состав дв.блока входят 2 боковые панели дв. проема с закладными элементами, панель-арка, дверь и комлектующие для монтажа
B20: ДВЕРЬ КОНТЕЙНЕРНАЯ (без панелей, с комплектацией) | E20: 42444
B21: Комплектация: комплект ручки и петель, комплект деталей для монтажа двери (2 стойки+перекладина+ пальцы латунные),
E24: Цена, Руб.
B25: Высота камеры = 2 200 мм (толщ панелей 80 мм) | C25: 1800 x2040 (бок.пан.дв.пр. 2040*300-2шт; пан.-арка 1200*190) | E25: 48056.24562
C26: 2400 x2040 (бок. пан.дв.пр. 2040*600-2шт; пан.-арка 1200*190) | E26: 52234.12087
C27: 3000 x2040 (бок. пан.дв.пр. 2040*900-2шт; пан.-арка 1200*190) | E27: 56411.99612
C28: 3600 x2040 (бок.пан.дв.пр. 2040*1200-2шт; пан.-арка 1200*190) | E28: 60589.87136
B30: Высота камеры = 2 460 мм (толщ.панелей 80 мм) | C30: 1800 x2300 (бок. пан.дв.пр. 2300*300-2шт; пан.-арка 1200*450) | E30: 49711.06117
C31: 2400 x2300 (бок. пан.дв.пр. 2300*600-2шт; пан.-арка 1200*450) | E31: 54421.69404
C32: 3000 x2300 (бок. пан.дв.пр. 2300*900-2шт; пан.-арка 1200*450) | E32: 59132.32692
C33: 3600 x2300 (бок. пан.дв.пр. 2300*1200-2шт; пан.-арка 1200*450) | E33: 63842.95979
B35: Высота камеры= 2 720 мм (толщ.панелей 80 мм) | C35: 1800 x2560 (бок. пан.дв.пр. 2560*300-2шт; пан.-арка 1200*710) | E35: 51605.86895
C36: 2400 x2560 (бок. пан.дв.пр. 2560*600-2шт; пан.-арка 1200*710) | E36: 56849.25945
C37: 3000 x2560 (бок. пан.дв.пр. 2560*900-2шт; пан.-арка 1200*710) | E37: 62092.64995
C38: 3600 x2560 (бок. пан.дв.пр. 2560*1200-2шт; пан.-арка 1200*710) | E38: 67336.04045
B41: Высота камеры = 2 240 мм (толщ панелей 100 мм) | C41: 1800 x2040 (бок.пан.дв.пр. 2040*300-2шт; пан.-арка 1200*190) | E41: 48421.88824
C42: 2400 x2040 (бок. пан.дв.пр. 2040*600-2шт; пан.-арка 1200*190) | E42: 53074.72193
C43: 3000 x2040 (бок. пан.дв.пр. 2040*900-2шт; пан.-арка 1200*190) | E43: 57727.55563
C44: 3600 x2040 (бок.пан.дв.пр. 2040*1200-2шт; пан.-арка 1200*190) | E44: 62380.38933
B46: Высота камеры = 2 500 мм (толщ.панелей 100 мм) | C46: 1800 x2300 (бок. пан.дв.пр. 2300*300-2шт; пан.-арка 1200*450) | E46: 50539.0972
C47: 2400 x2300 (бок. пан.дв.пр. 2300*600-2шт; пан.-арка 1200*450) | E47: 55785.0007
C48: 3000 x2300 (бок. пан.дв.пр. 2300*900-2шт; пан.-арка 1200*450) | E48: 61030.90421
C49: 3600 x2300 (бок. пан.дв.пр. 2300*1200-2шт; пан.-арка 1200*450) | E49: 66276.80772
B51: Высота камеры= 2 760 мм (толщ.панелей 100 мм) | C51: 1800 x2560 (бок. пан.дв.пр. 2560*300-2шт; пан.-арка 1200*710) | E51: 52655.04965
C52: 2400 x2560 (бок. пан.дв.пр. 2560*600-2шт; пан.-арка 1200*710) | E52: 58494.02297
C53: 3000 x2560 (бок. пан.дв.пр. 2560*900-2шт; пан.-арка 1200*710) | E53: 64332.99628
C54: 3600 x2560 (бок. пан.дв.пр. 2560*1200-2шт; пан.-арка 1200*710) | E54: 70171.9696
B57: Дополнительное оборудование:
B58: Комплект для низкотемпературных камер: компенсационный клапан, ПЭН обогрева двери
B60: Тип двери | D60: Толщина панели
D61: 80 мм | E61: 100 мм
D62: Цена, Руб. | E62: Цена, Руб.
B63: Распашная | D63: 917 | E63: 961
B64: Откатная или контейнерная | D64: 966 | E64: 1028
B67: Производитель оставляет за собой право частичного изменения технических характеристик оборудования без принципиальных изменений его эксплуатационных свойств

Sheet Дверные бл. с откат.дверью
D2: 2020-03-30
B5: ПРАЙС - ЛИСТ - ДВЕРНЫЕ БЛОКИ, ДВЕРИ
B7: Серийно выпускаются 3 основных типа дверей "Полаир" с толщиной полотна двери 80 мм: для светового проема 1850*800 -распашные, для светового проема 1200*1850 - контейнерные и откатные. Двери устанавливаются на камеры с толщиной панелей как 80мм так и 100 м
B9: Базовые цены с учетом НДС
B10: ДВЕРНЫЕ БЛОКИ С ОТКАТНОЙ ДВЕРЬЮ
E12: Цена, Руб.
B13: ДВЕРЬ ОТКАТНАЯ (без панелей, с комплектацией) | E13: 67033 | H13: =I13*1.15 -> 50809.99 | I13: 44182.6
B14: Комплектация: 1 упаковка - комплект деталей для сборки откатной двери, комплект ручка и замок, метизы
B15: 2 упаковка - козырек, кронштейны, профиль алюминевый L = 2 710 мм, уплотнение двери
C16: Дверные блоки с откатной дверью для различной высоты камер(дверь,пан.дв.проема,пан.-арка,комплектация)
E17: Цена, Руб.
B18: Высота камеры = 2 200 мм (толщ панелей 80 мм) | C18: 1800 x2040 (бок.пан.дв.пр. 2040*300-2шт; пан.-арка 1200*190) | E18: 72647.28215 | H18: =I18*1.15 -> 54711.25 | I18: 47575
C19: 2400 x2040 (бок. пан.дв.пр. 2040*600-2шт; пан.-арка 1200*190) | E19: 76825.1574 | H19: =I19*1.15 -> 57640.99 | I19: 50122.6
C20: 3000 x2040 (бок. пан.дв.пр. 2040*900-2шт; пан.-арка 1200*190) | E20: 81003.03265 | H20: 60568.2 | I20: 52668
C21: 3600 x2040 (бок.пан.дв.пр. 2040*1200-2шт; пан.-арка 1200*190) | E21: 87693.91556 | H21: 63667.45 | I21: 55363
B23: Высота камеры = 2 460 мм (толщ.панелей 80 мм) | C23: 1800 x2300 (бок. пан.дв.пр. 2300*300-2шт; пан.-арка 1200*450) | E23: 74302.0977 | H23: 55832.04 | I23: 48549.6
C24: 2400 x2300 (бок. пан.дв.пр. 2300*600-2шт; пан.-арка 1200*450) | E24: 79012.73057 | H24: 59132.425 | I24: 51419.5
C25: 3000 x2300 (бок. пан.дв.пр. 2300*900-2шт; пан.-арка 1200*450) | E25: 83723.36345 | H25: 62604.85 | I25: 54439
C26: 3600 x2300 (бок. пан.дв.пр. 2300*1200-2шт; пан.-арка 1200*450) | E26: 88354.83658 | H26: 65906.5 | I26: 57310
B28: Высота камеры= 2 720 мм (толщ.панелей 80 мм) | C28: 1800 x2560 (бок. пан.дв.пр. 2560*300-2шт; пан.-арка 1200*710) | E28: 76196.90548 | H28: 56950.3 | I28: 49522
C29: 2400 x2560 (бок. пан.дв.пр. 2560*600-2шт; пан.-арка 1200*710) | E29: 81440.29598 | H29: 60795.9 | I29: 52866
C30: 3000 x2560 (бок. пан.дв.пр. 2560*900-2шт; пан.-арка 1200*710) | E30: 86683.68648 | H30: 64471.99 | I30: 56062.6
C31: 3600 x2560 (бок. пан.дв.пр. 2560*1200-2шт; пан.-арка 1200*710) | E31: 91927.07698 | H31: 68145.55 | I31: 59257
E33: 0 | H33: 0
B34: Высота камеры = 2 240 мм (толщ панелей 100 мм) | C34: 1800 x2040 (бок.пан.дв.пр. 2040*300-2шт; пан.-арка 1200*190) | E34: 73012.92477 | H34: 58869.305 | I34: 51190.7
C35: 2400 x2040 (бок. пан.дв.пр. 2040*600-2шт; пан.-арка 1200*190) | E35: 77665.75846 | H35: 58308.91 | I35: 50703.4
C36: 3000 x2040 (бок. пан.дв.пр. 2040*900-2шт; пан.-арка 1200*190) | E36: 82318.59216 | H36: 61542.25 | I36: 53515
C37: 3600 x2040 (бок.пан.дв.пр. 2040*1200-2шт; пан.-арка 1200*190) | E37: 86971.42586 | H37: 64947.63 | I37: 56476.2
B39: Высота камеры = 2 500 мм (толщ.панелей 100 мм) | C39: 1800 x2300 (бок. пан.дв.пр. 2300*300-2шт; пан.-арка 1200*450) | E39: 75130.13373 | H39: 56311.475 | I39: 48966.5
C40: 2400 x2300 (бок. пан.дв.пр. 2300*600-2шт; пан.-арка 1200*450) | E40: 80376.03723 | H40: 59957.205 | I40: 52136.7
C41: 3000 x2300 (бок. пан.дв.пр. 2300*900-2шт; пан.-арка 1200*450) | E41: 85621.94074 | H41: 63774.975 | I41: 55456.5
C42: 3600 x2300 (бок. пан.дв.пр. 2300*1200-2шт; пан.-арка 1200*450) | E42: 90867.84424 | H42: 67421.97 | I42: 58627.8
B44: Высота камеры= 2 760 мм (толщ.панелей 100 мм) | C44: 1800 x2560 (бок. пан.дв.пр. 2560*300-2шт; пан.-арка 1200*710) | E44: 77246.08618 | H44: 57544.85 | I44: 50039
C45: 2400 x2560 (бок. пан.дв.пр. 2560*600-2шт; пан.-арка 1200*710) | E45: 83085.0595 | H45: 61777.54 | I45: 53719.6
C46: 3000 x2560 (бок. пан.дв.пр. 2560*900-2шт; пан.-арка 1200*710) | E46: 88924.03281 | H46: 65119.67 | I46: 56625.8
C47: 3600 x2560 (бок. пан.дв.пр. 2560*1200-2шт; пан.-арка 1200*710) | E47: 94763.00613 | H47: 69893.78 | I47: 60777.2
B49: Базовые цены с учётом НДС
B50: Дополнительное оборудование:
B51: Комплект для низкотемпературных камер: компенсационный клапан, ПЭН обогрева двери
B53: Тип двери | D53: Толщина панели
D54: 80 мм | E54: 100 мм
D55: Цена, Руб. | E55: Цена, Руб. | H55: Цена, Руб.
B56: Распашная | D56: 917 | E56: 961 | H56: =J56*1.15 -> 713 | I56: =K56*1.15 -> 724.5 | J56: 620 | K56: 630
B57: Откатная или контейнерная | D57: 966 | E57: 1028 | H57: =J57*1.15 -> 759 | I57: =K57*1.15 -> 770.5 | J57: 660 | K57: 670
B59: Производитель оставляет за собой право частичного изменения технических характеристик оборудования без принципиальных изменений его эксплуатационных свойств
